T,Company(T),Bvaser(T),Bvasdiv(T),Cipfa2(T),Cipfa3(T),Account,Account(T),Updated,TransNo,Amount,Montype(T),Supplier name,SuppID,Supplier group,TT,Period,Cat1,TC,Text
B,Bromsgrove District Council,Cultural and Related Services,Community parks and open spaces,Premise Related Expenditure,Fixtures and Fittings,B63,Internal fixtures/fittings - maint'ce,31/07/2014,186032,608.67,Revenue income and expenditure,Initial Washroom Solutions Ltd.,5187,1,VO,201404,SP01,P1,
B,Bromsgrove District Council,Environmental Services,Public Toilets,Premise Related Expenditure,Fixtures and Fittings,B63,Internal fixtures/fittings - maint'ce,31/07/2014,186033,122.25,Revenue income and expenditure,Initial Washroom Solutions Ltd.,5187,1,VO,201404,PC02,P1,
B,Bromsgrove District Council,Surpluses/deficits on trading undertakings,Depot Services,Employees,Direct Employee Expenses,A10,Agency workers,03/07/2014,186417,"2,093.11",Revenue income and expenditure,MatrixSCM Ltd,9043,1,VN,201404,DW21,P1,
B,Bromsgrove District Council,Environmental Services,Public Toilets,Employees,Direct Employee Expenses,A10,Agency workers,03/07/2014,186417,953.00,Revenue income and expenditure,MatrixSCM Ltd,9043,1,VN,201404,PC00,P1,
B,Bromsgrove District Council,Planning and Development Services,Advice,Employees,Direct Employee Expenses,A10,Agency workers,03/07/2014,186417,729.76,Revenue income and expenditure,MatrixSCM Ltd,9043,1,VN,201404,DC00,P1,
B,Bromsgrove District Council,Surpluses/deficits on trading undertakings,Depot Services,Employees,Direct Employee Expenses,A10,Agency workers,03/07/2014,186417,"5,036.88",Revenue income and expenditure,MatrixSCM Ltd,9043,1,VN,201404,DW11,P1,
B,Bromsgrove District Council,Surpluses/deficits on trading undertakings,Depot Services,Supplies and Services,"Equipment, furniture and materials",D03,Equipment - rental/lease,08/07/2014,186520,400.12,Revenue income and expenditure,Berendsen UK Ltd,9560,1,VO,201404,DT41,P1,
B,Bromsgrove District Council,Surpluses/deficits on trading undertakings,Depot Services,Supplies and Services,"Equipment, furniture and materials",D03,Equipment - rental/lease,08/07/2014,186520,128.24,Revenue income and expenditure,Berendsen UK Ltd,9560,1,VO,201404,DP02,P1,
B,Bromsgrove District Council,Surpluses/deficits on trading undertakings,Depot Services,Supplies and Services,"Equipment, furniture and materials",D02,Equipment - maintenance,08/07/2014,186520,41.92,Revenue income and expenditure,Berendsen UK Ltd,9560,1,VO,201404,DP02,P1,
B,Bromsgrove District Council,Highways and transport services,Off-street Parking,Supplies and Services,"Equipment, furniture and materials",D02,Equipment - maintenance,14/07/2014,186554,290.46,Revenue income and expenditure,Thyssenkrupp Elevator UK Ltd,3658,1,VO,201404,CP01,P1,
B,Bromsgrove District Council,Environmental Services,Public Toilets,Premise Related Expenditure,Fixtures and Fittings,B63,Internal fixtures/fittings - maint'ce,03/07/2014,186555,162.80,Revenue income and expenditure,Hygienex Ltd,7434,1,VO,201404,PC03,P1,
B,Bromsgrove District Council,Surpluses/deficits on trading undertakings,Depot Services,Transport Related Expenditure,Contract Hire and operating leases,C31,Contract hire of vehicles,03/07/2014,186575,-360.00,Revenue income and expenditure,Riverside Truck Rental,3042,1,CN,201404,DW21,P1,
B,Bromsgrove District Council,Surpluses/deficits on trading undertakings,Depot Services,Employees,Direct Employee Expenses,A10,Agency workers,03/07/2014,186596,"7,713.08",Revenue income and expenditure,MatrixSCM Ltd,9043,1,VN,201404,DW11,P1,
B,Bromsgrove District Council,Surpluses/deficits on trading undertakings,Depot Services,Employees,Direct Employee Expenses,A10,Agency workers,03/07/2014,186596,"4,754.54",Revenue income and expenditure,MatrixSCM Ltd,9043,1,VN,201404,DW21,P1,
B,Bromsgrove District Council,Planning and Development Services,Advice,Employees,Direct Employee Expenses,A10,Agency workers,03/07/2014,186596,740.12,Revenue income and expenditure,MatrixSCM Ltd,9043,1,VN,201404,DC00,P1,
B,Bromsgrove District Council,Surpluses/deficits on trading undertakings,Depot Services,Transport Related Expenditure,Direct Transport Costs,C06,Tyres,11/07/2014,186617,83.08,Revenue income and expenditure,A T S Euromaster Ltd.,8244,1,VP,201404,DW18,P1,
B,Bromsgrove District Council,Surpluses/deficits on trading undertakings,Depot Services,Transport Related Expenditure,Direct Transport Costs,C06,Tyres,11/07/2014,186617,223.98,Revenue income and expenditure,A T S Euromaster Ltd.,8244,1,VP,201404,DW11,P1,
B,Bromsgrove District Council,Surpluses/deficits on trading undertakings,Depot Services,Transport Related Expenditure,Direct Transport Costs,C06,Tyres,11/07/2014,186617,231.55,Revenue income and expenditure,A T S Euromaster Ltd.,8244,1,VP,201404,DW21,P1,
B,Bromsgrove District Council,Cultural and Related Services,Outdoor sports and recreation facilities,Transport Related Expenditure,Direct Transport Costs,C06,Tyres,11/07/2014,186617,63.03,Revenue income and expenditure,A T S Euromaster Ltd.,8244,1,VP,201404,PA01,P1,
B,Bromsgrove District Council,Surpluses/deficits on trading undertakings,Depot Services,Transport Related Expenditure,Direct Transport Costs,C06,Tyres,11/07/2014,186617,302.29,Revenue income and expenditure,A T S Euromaster Ltd.,8244,1,VP,201404,DW32,P1,
B,Bromsgrove District Council,Environmental Services,Public Toilets,Transport Related Expenditure,Direct Transport Costs,C06,Tyres,11/07/2014,186617,43.88,Revenue income and expenditure,A T S Euromaster Ltd.,8244,1,VP,201404,PC00,P1,
B,Bromsgrove District Council,Surpluses/deficits on trading undertakings,Depot Services,Transport Related Expenditure,Contract Hire and operating leases,C31,Contract hire of vehicles,09/07/2014,186623,"3,859.00",Revenue income and expenditure,Gulliver's Truck Hire Ltd,10600,1,VO,201404,DW14,P1,
B,Bromsgrove District Council,Surpluses/deficits on trading undertakings,Internal Business Units and Support Services,Premise Related Expenditure,"Repairs, alterations and maint. of buildings",B03,Internal repair/maint. (reg'd for gross pay't),08/07/2014,186632,22.50,Revenue income and expenditure,Stannah Lift Services Limited,2122,1,VO,201404,ES20,P1,
B,Bromsgrove District Council,General Fund Housing Services,,Supplies and Services,Services,D47,Consultants' fees,08/07/2014,186634,"11,898.00",Revenue income and expenditure,Abritas Ltd,6390,1,VO,201404,HG38,P1,
B,Bromsgrove District Council,,,Supplies and Services,Catering,D24,Civic hospitality,08/07/2014,186638,487.50,Revenue income and expenditure,Complete Caterers Limited,7911,1,VO,201404,CD61,P4,
B,Bromsgrove District Council,Planning and Development Services,Advice,Supplies and Services,Services,D47,Consultants' fees,08/07/2014,186653,191.25,Revenue income and expenditure,Kernon Countryside Consultants,1381,1,VO,201404,DC00,P1,
B,Bromsgrove District Council,Surpluses/deficits on trading undertakings,Depot Services,Supplies and Services,"Equipment, furniture and materials",D02,Equipment - maintenance,09/07/2014,186670,293.97,Revenue income and expenditure,Chubb Electronic Security Ltd,4717,1,VO,201404,DP02,P1,
B,Bromsgrove District Council,Surpluses/deficits on trading undertakings,Depot Services,Supplies and Services,"Equipment, furniture and materials",D02,Equipment - maintenance,09/07/2014,186671,248.25,Revenue income and expenditure,Chubb Electronic Security Ltd,4717,1,VO,201404,DP02,P1,
B,Bromsgrove District Council,,,Supplies and Services,Communication and computing,D51,Printing and stationery,30/07/2014,186672,98.00,Revenue income and expenditure,Antalis Ltd,1768,1,VO,201404,CC01,P1,
B,Bromsgrove District Council,Surpluses/deficits on trading undertakings,Depot Services,Transport Related Expenditure,Contract Hire and operating leases,C31,Contract hire of vehicles,08/07/2014,186674,"3,000.00",Revenue income and expenditure,CMS Hire Ltd,6635,1,VO,201404,DW11,P1,
B,Bromsgrove District Council,Central Services to the Public,Conducting Elections,Premise Related Expenditure,Rents,B31,Room hire,08/07/2014,186676,240.00,Revenue income and expenditure,Locke & Eastwood,1409,2,VO,201404,EL10,P1,
B,Bromsgrove District Council,Surpluses/deficits on trading undertakings,Depot Services,Supplies and Services,"Equipment, furniture and materials",D03,Equipment - rental/lease,08/07/2014,186679,7.00,Revenue income and expenditure,BOC Gases Ltd,1075,1,VO,201404,DT41,P1,
B,Bromsgrove District Council,Surpluses/deficits on trading undertakings,Depot Services,Supplies and Services,"Equipment, furniture and materials",D03,Equipment - rental/lease,08/07/2014,186683,76.99,Revenue income and expenditure,Air Liquide Limited,1407,1,VO,201404,DT41,P1,
B,Bromsgrove District Council,Planning and Development Services,Advice,Employees,Direct Employee Expenses,A10,Agency workers,08/07/2014,186690,"22,000.00",Revenue income and expenditure,Birmingham City Council Planning & Regeneration,10688,1,VO,201404,DC00,P4,
B,Bromsgrove District Council,Surpluses/deficits on trading undertakings,Depot Services,Supplies and Services,"Equipment, furniture and materials",D01,Equipment - purchase,03/07/2014,186691,-31.42,Revenue income and expenditure,Spaldings (UK) Ltd,1600,1,CN,201404,DW21,P1,
B,Bromsgrove District Council,Surpluses/deficits on trading undertakings,Depot Services,Employees,Direct Employee Expenses,A10,Agency workers,03/07/2014,186698,"1,781.62",Revenue income and expenditure,MatrixSCM Ltd,9043,1,VN,201404,DW21,P1,
B,Bromsgrove District Council,Surpluses/deficits on trading undertakings,Depot Services,Employees,Direct Employee Expenses,A10,Agency workers,03/07/2014,186698,"4,947.45",Revenue income and expenditure,MatrixSCM Ltd,9043,1,VN,201404,DW11,P1,
B,Bromsgrove District Council,Planning and Development Services,Advice,Employees,Direct Employee Expenses,A10,Agency workers,03/07/2014,186698,"1,277.68",Revenue income and expenditure,MatrixSCM Ltd,9043,1,VN,201404,DC00,P1,
B,Bromsgrove District Council,,,Supplies and Services,"Equipment, furniture and materials",D02,Equipment - maintenance,22/07/2014,186705,"3,646.05",Revenue income and expenditure,Q-Matic UK Ltd,5989,1,VO,201404,CC01,P1,
B,Bromsgrove District Council,Central Services to the Public,Conducting Elections,Premise Related Expenditure,Rents,B31,Room hire,08/07/2014,186708,45.00,Revenue income and expenditure,Where Next Association,7760,1,VO,201404,EL10,P1,
B,Bromsgrove District Council,Surpluses/deficits on trading undertakings,Internal Business Units and Support Services,Supplies and Services,Communication and computing,D56,Computer - hardware,08/07/2014,186711,81.00,Revenue income and expenditure,Probrand Limited,9439,1,VO,201404,IT10,P1,
B,Bromsgrove District Council,Surpluses/deficits on trading undertakings,Internal Business Units and Support Services,Supplies and Services,Communication and computing,D56,Computer - hardware,08/07/2014,186711,81.00,Revenue income and expenditure,Probrand Limited,9439,1,VO,201404,IT12,P1,
B,Bromsgrove District Council,Surpluses/deficits on trading undertakings,Internal Business Units and Support Services,Supplies and Services,Communication and computing,D56,Computer - hardware,08/07/2014,186712,40.50,Revenue income and expenditure,Probrand Limited,9439,1,VO,201404,IT12,P1,
B,Bromsgrove District Council,Surpluses/deficits on trading undertakings,Internal Business Units and Support Services,Supplies and Services,Communication and computing,D56,Computer - hardware,08/07/2014,186712,7.50,Revenue income and expenditure,Probrand Limited,9439,1,VO,201404,IT10,P1,
B,Bromsgrove District Council,Environmental Services,Cemeteries,Supplies and Services,Services,D48,Contractors' fees/charges/SLA's,08/07/2014,186718,648.00,Revenue income and expenditure,Peter Price,7730,1,VO,201404,CE01,P4,
B,Bromsgrove District Council,Surpluses/deficits on trading undertakings,Internal Business Units and Support Services,Supplies and Services,Communication and computing,D56,Computer - hardware,08/07/2014,186720,123.59,Revenue income and expenditure,Black Box Network Services UK Ltd,8951,1,VO,201404,IT10,P1,
B,Bromsgrove District Council,Surpluses/deficits on trading undertakings,Internal Business Units and Support Services,Supplies and Services,Communication and computing,D56,Computer - hardware,08/07/2014,186721,560.00,Revenue income and expenditure,Haven Systems Ltd.,8837,1,VO,201404,IT12,P1,
B,Bromsgrove District Council,Surpluses/deficits on trading undertakings,Internal Business Units and Support Services,Supplies and Services,Communication and computing,D56,Computer - hardware,08/07/2014,186721,560.00,Revenue income and expenditure,Haven Systems Ltd.,8837,1,VO,201404,IT10,P1,
B,Bromsgrove District Council,Surpluses/deficits on trading undertakings,Depot Services,Supplies and Services,"Equipment, furniture and materials",D06,Materials - purchased,08/07/2014,186734,221.95,Revenue income and expenditure,Aggregate Industries UK Ltd,1009,1,VO,201404,DS62,P1,
B,Bromsgrove District Council,Highways and transport services,Off-street Parking,Supplies and Services,Miscellaneous expenses,D88,Miscellaneous expenses,21/07/2014,186737,"2,040.60",Revenue income and expenditure,Jade Security Services Ltd,7651,1,VO,201404,CP00,P1,
B,Bromsgrove District Council,Surpluses/deficits on trading undertakings,Depot Services,Transport Related Expenditure,Direct Transport Costs,C01,Vehicle repairs/maint'ce,09/07/2014,186744,109.17,Revenue income and expenditure,West Mercia Fork Truck Services Ltd,9695,1,VO,201404,DP02,P1,
B,Bromsgrove District Council,Surpluses/deficits on trading undertakings,Depot Services,Transport Related Expenditure,Direct Transport Costs,C01,Vehicle repairs/maint'ce,08/07/2014,186748,145.00,Revenue income and expenditure,Truckstop Hawkes (Egglaroy Ltd T/A),6329,1,VO,201404,DS62,P1,
B,Bromsgrove District Council,Surpluses/deficits on trading undertakings,Depot Services,Transport Related Expenditure,Contract Hire and operating leases,C31,Contract hire of vehicles,08/07/2014,186750,165.00,Revenue income and expenditure,Gulliver's Truck Hire Ltd,10600,1,VO,201404,DW21,P1,
B,Bromsgrove District Council,Surpluses/deficits on trading undertakings,Depot Services,Transport Related Expenditure,Contract Hire and operating leases,C31,Contract hire of vehicles,08/07/2014,186751,"1,190.00",Revenue income and expenditure,Gulliver's Truck Hire Ltd,10600,1,VO,201404,DW14,P1,
B,Bromsgrove District Council,Surpluses/deficits on trading undertakings,Depot Services,Transport Related Expenditure,Contract Hire and operating leases,C31,Contract hire of vehicles,09/07/2014,186752,850.00,Revenue income and expenditure,Gulliver's Truck Hire Ltd,10600,1,VO,201404,DW11,P1,
B,Bromsgrove District Council,Not BVACOP Service,Not BVACOP Sub Division,Current Assets,Stocks,300,Stock Movement,08/07/2014,186753,502.60,,Dennis Eagle Ltd,1191,1,VO,201404,XX611,P1,
B,Bromsgrove District Council,Surpluses/deficits on trading undertakings,Internal Business Units and Support Services,Supplies and Services,Communication and computing,D56,Computer - hardware,08/07/2014,186758,402.28,Revenue income and expenditure,NSSE Ltd,7758,1,VO,201404,IT12,P1,
B,Bromsgrove District Council,Not BVACOP Service,Not BVACOP Sub Division,Current Assets,Stocks,300,Stock Movement,08/07/2014,186759,214.50,,Helping Hand Co Ledbury Ltd,2223,1,VO,201404,XX611,P1,
B,Bromsgrove District Council,Planning and Development Services,Advice,Supplies and Services,Services,D47,Consultants' fees,08/07/2014,186760,330.00,Revenue income and expenditure,Joe Holyoak,6045,1,VO,201404,DC00,P4,
B,Bromsgrove District Council,Not BVACOP Service,Not BVACOP Sub Division,Capital Expenditure,"Plant, vehicles and equipment",X22,Computer equipment etc.,08/07/2014,186762,838.99,Capital income and expenditure,Wyre Forest District Council,4809,5,VO,201404,CAPE,P1,
B,Bromsgrove District Council,General Fund Housing Services,Travellers Sites,Premise Related Expenditure,"Repairs, alterations and maint. of buildings",B04,Repair/maint'ce (CIS tax deductible),08/07/2014,186763,265.00,Revenue income and expenditure,WD Ornamental Ironwork,10033,2,VO,201404,HG02,P1,
B,Bromsgrove District Council,General Fund Housing Services,Travellers Sites,Supplies and Services,Services,D48,Contractors' fees/charges/SLA's,08/07/2014,186763,0.00,Revenue income and expenditure,WD Ornamental Ironwork,10033,2,VO,201404,HG02,P1,
B,Bromsgrove District Council,Surpluses/deficits on trading undertakings,Internal Business Units and Support Services,Premise Related Expenditure,Fixtures and Fittings,B63,Internal fixtures/fittings - maint'ce,08/07/2014,186766,118.20,Revenue income and expenditure,Bromsgrove Windows and Conservatories,9212,1,VO,201404,ES20,P1,
B,Bromsgrove District Council,Cultural and Related Services,Museums and Gallaries,Premise Related Expenditure,Fixtures and Fittings,B63,Internal fixtures/fittings - maint'ce,07/07/2014,186767,362.57,Revenue income and expenditure,A D T Fire and Security,1244,1,VO,201404,MT91,P1,
B,Bromsgrove District Council,Surpluses/deficits on trading undertakings,Internal Business Units and Support Services,Premise Related Expenditure,Fixtures and Fittings,B63,Internal fixtures/fittings - maint'ce,08/07/2014,186768,391.51,Revenue income and expenditure,Chubb Electronic Security Ltd,4717,1,VO,201404,ES20,P1,
B,Bromsgrove District Council,Surpluses/deficits on trading undertakings,Internal Business Units and Support Services,Premise Related Expenditure,Fixtures and Fittings,B63,Internal fixtures/fittings - maint'ce,08/07/2014,186769,229.08,Revenue income and expenditure,Chubb Electronic Security Ltd,4717,1,VO,201404,ES20,P1,
B,Bromsgrove District Council,Surpluses/deficits on trading undertakings,Depot Services,Supplies and Services,"Equipment, furniture and materials",D02,Equipment - maintenance,09/07/2014,186770,"1,388.07",Revenue income and expenditure,Chubb Electronic Security Ltd,4717,1,VO,201404,DP02,P1,
B,Bromsgrove District Council,Not BVACOP Service,Not BVACOP Sub Division,Capital Expenditure,"Plant, vehicles and equipment",X22,Computer equipment etc.,09/07/2014,186771,"2,000.00",Capital income and expenditure,Prestige Systems Ltd.,8836,1,VO,201404,CAPE,P1,
B,Bromsgrove District Council,Surpluses/deficits on trading undertakings,Internal Business Units and Support Services,Premise Related Expenditure,Fixtures and Fittings,B63,Internal fixtures/fittings - maint'ce,15/07/2014,186773,80.00,Revenue income and expenditure,Foster & Cross (Lifts) Ltd (Otis Ltd),9750,2,VO,201404,ES20,P1,
B,Bromsgrove District Council,General Fund Housing Services,,Supplies and Services,Grants and subscriptions,D71,Grants,09/07/2014,186775,"3,000.00",Revenue income and expenditure,Worcester City Council,1138,5,VO,201404,HG37,P3,
B,Bromsgrove District Council,Surpluses/deficits on trading undertakings,Depot Services,Transport Related Expenditure,Contract Hire and operating leases,C31,Contract hire of vehicles,02/07/2014,186777,86.00,Revenue income and expenditure,G P Hose Services Ltd,1325,1,VO,201404,DW11,P1,
B,Bromsgrove District Council,Surpluses/deficits on trading undertakings,Depot Services,Transport Related Expenditure,Direct Transport Costs,C01,Vehicle repairs/maint'ce,02/07/2014,186778,70.00,Revenue income and expenditure,G P Hose Services Ltd,1325,1,VO,201404,DW11,P1,
B,Bromsgrove District Council,Not BVACOP Service,Not BVACOP Sub Division,Current Assets,Stocks,300,Stock Movement,03/07/2014,186779,68.00,,G P Hose Services Ltd,1325,1,VO,201404,XX611,P1,
B,Bromsgrove District Council,Surpluses/deficits on trading undertakings,Depot Services,Transport Related Expenditure,Direct Transport Costs,C01,Vehicle repairs/maint'ce,03/07/2014,186780,65.00,Revenue income and expenditure,G P Hose Services Ltd,1325,1,VO,201404,DW11,P1,
B,Bromsgrove District Council,Surpluses/deficits on trading undertakings,Depot Services,Transport Related Expenditure,Direct Transport Costs,C01,Vehicle repairs/maint'ce,03/07/2014,186781,82.00,Revenue income and expenditure,G P Hose Services Ltd,1325,1,VO,201404,DW21,P1,
B,Bromsgrove District Council,Surpluses/deficits on trading undertakings,Depot Services,Transport Related Expenditure,Direct Transport Costs,C01,Vehicle repairs/maint'ce,03/07/2014,186782,88.00,Revenue income and expenditure,G P Hose Services Ltd,1325,1,VO,201404,DW11,P1,
B,Bromsgrove District Council,Surpluses/deficits on trading undertakings,Depot Services,Transport Related Expenditure,Direct Transport Costs,C01,Vehicle repairs/maint'ce,03/07/2014,186783,80.00,Revenue income and expenditure,G P Hose Services Ltd,1325,1,VO,201404,DW11,P1,
B,Bromsgrove District Council,Surpluses/deficits on trading undertakings,Depot Services,Transport Related Expenditure,Direct Transport Costs,C01,Vehicle repairs/maint'ce,03/07/2014,186784,108.00,Revenue income and expenditure,G P Hose Services Ltd,1325,1,VO,201404,DW11,P1,
B,Bromsgrove District Council,Surpluses/deficits on trading undertakings,Depot Services,Transport Related Expenditure,Direct Transport Costs,C01,Vehicle repairs/maint'ce,03/07/2014,186785,130.00,Revenue income and expenditure,G P Hose Services Ltd,1325,1,VO,201404,DW11,P1,
B,Bromsgrove District Council,Surpluses/deficits on trading undertakings,Depot Services,Transport Related Expenditure,Direct Transport Costs,C01,Vehicle repairs/maint'ce,21/07/2014,186786,70.00,Revenue income and expenditure,G P Hose Services Ltd,1325,1,VO,201404,DW11,P1,
B,Bromsgrove District Council,Surpluses/deficits on trading undertakings,Depot Services,Transport Related Expenditure,Direct Transport Costs,C01,Vehicle repairs/maint'ce,03/07/2014,186787,185.00,Revenue income and expenditure,G P Hose Services Ltd,1325,1,VO,201404,DW11,P1,
B,Bromsgrove District Council,Surpluses/deficits on trading undertakings,Depot Services,Transport Related Expenditure,Direct Transport Costs,C01,Vehicle repairs/maint'ce,08/07/2014,186788,12.86,Revenue income and expenditure,Ron Smith & Co Ltd,1854,1,VO,201404,DW32,P1,
B,Bromsgrove District Council,Surpluses/deficits on trading undertakings,Depot Services,Supplies and Services,Communication and computing,D53,Postage/packaging,08/07/2014,186788,2.50,Revenue income and expenditure,Ron Smith & Co Ltd,1854,1,VO,201404,DW32,P1,
B,Bromsgrove District Council,Environmental Services,Internal Drainage Levy Work,Premise Related Expenditure,Water Services,B52,Sewers/watercourses maint'ce,08/07/2014,186791,350.00,Revenue income and expenditure,Tuke & Bell Ltd,1661,2,VO,201404,LD02,P1,
B,Bromsgrove District Council,Surpluses/deficits on trading undertakings,Depot Services,Supplies and Services,"Equipment, furniture and materials",D06,Materials - purchased,08/07/2014,186793,50.00,Revenue income and expenditure,A-Z Skips Ltd,6677,1,VO,201404,DS62,P1,
B,Bromsgrove District Council,Surpluses/deficits on trading undertakings,Depot Services,Premise Related Expenditure,Water Services,B51,Water charges,21/07/2014,186794,"3,673.74",Revenue income and expenditure,Severn Trent Water,8934,1,VO,201404,DS61,P4,
B,Bromsgrove District Council,Surpluses/deficits on trading undertakings,Depot Services,Supplies and Services,Miscellaneous expenses,D88,Miscellaneous expenses,22/07/2014,186795,160.00,Revenue income and expenditure,M D Carpentry & Building Contractors Ltd,1109,2,VO,201404,DW21,P1,
B,Bromsgrove District Council,Surpluses/deficits on trading undertakings,Depot Services,Transport Related Expenditure,Direct Transport Costs,C01,Vehicle repairs/maint'ce,14/07/2014,186796,528.00,Revenue income and expenditure,Imperial Commercials Ltd ( Derby),10589,1,VO,201404,DW32,P1,
B,Bromsgrove District Council,Surpluses/deficits on trading undertakings,Depot Services,Supplies and Services,Services,D49,Miscellaneous services,29/07/2014,186803,90.00,Revenue income and expenditure,Royal Mail Group Plc,1558,1,VN,201404,DP02,P1,
B,Bromsgrove District Council,Corporate and Democratic Core,Corporate Management,Supplies and Services,Services,D49,Miscellaneous services,04/07/2014,186805,"16,000.00",Revenue income and expenditure,Grant Thornton,7394,1,VN,201404,CM01,P1,
B,Bromsgrove District Council,Surpluses/deficits on trading undertakings,Depot Services,Employees,Direct Employee Expenses,A10,Agency workers,03/07/2014,186809,"6,015.51",Revenue income and expenditure,MatrixSCM Ltd,9043,1,VN,201404,DW11,P1,
B,Bromsgrove District Council,Surpluses/deficits on trading undertakings,Depot Services,Employees,Direct Employee Expenses,A10,Agency workers,03/07/2014,186809,"2,505.74",Revenue income and expenditure,MatrixSCM Ltd,9043,1,VN,201404,DW21,P1,
B,Bromsgrove District Council,Environmental Services,Public Toilets,Employees,Direct Employee Expenses,A10,Agency workers,03/07/2014,186809,162.01,Revenue income and expenditure,MatrixSCM Ltd,9043,1,VN,201404,PC00,P1,
B,Bromsgrove District Council,Planning and Development Services,Advice,Employees,Direct Employee Expenses,A10,Agency workers,03/07/2014,186809,758.01,Revenue income and expenditure,MatrixSCM Ltd,9043,1,VN,201404,DC00,P1,
B,Bromsgrove District Council,,,Supplies and Services,Communication and computing,D51,Printing and stationery,03/07/2014,186811,875.38,Revenue income and expenditure,Kaizen Consultants,7136,1,VN,201404,RB01,P1,
B,Bromsgrove District Council,,,Supplies and Services,Communication and computing,D51,Printing and stationery,03/07/2014,186812,"5,367.18",Revenue income and expenditure,Kaizen Consultants,7136,1,VN,201404,RB01,P1,
B,Bromsgrove District Council,Planning and Development Services,Building Regulations,Supplies and Services,Miscellaneous expenses,D85,General expenses,08/07/2014,186820,175.00,Revenue income and expenditure,Barrie Beard Ltd,1050,2,VO,201404,BR00,P1,
B,Bromsgrove District Council,Central Services to the Public,Registration of Electors,Supplies and Services,Communication and computing,D53,Postage/packaging,08/07/2014,186821,73.72,Revenue income and expenditure,Bonds Worldwide Express Limited,5586,1,VO,201404,EL00,P1,
B,Bromsgrove District Council,Planning and Development Services,Advice,Supplies and Services,Communication and computing,D54,Advertising (general),21/07/2014,186824,267.32,Revenue income and expenditure,TMP (UK) Ltd,1646,1,VO,201404,DC00,P1,
B,Bromsgrove District Council,Not BVACOP Service,Not BVACOP Sub Division,Current Assets,Stocks,300,Stock Movement,08/07/2014,186828,18.50,,Focal Image,1252,1,VO,201404,XX611,P1,
B,Bromsgrove District Council,Not BVACOP Service,Not BVACOP Sub Division,Current Assets,Stocks,300,Stock Movement,08/07/2014,186828,310.50,,Focal Image,1252,1,VO,201404,XX611,P4,
B,Bromsgrove District Council,Surpluses/deficits on trading undertakings,Internal Business Units and Support Services,Supplies and Services,Communication and computing,D51,Printing and stationery,14/07/2014,186832,68.59,Revenue income and expenditure,Ricoh UK Ltd,6528,1,VO,201404,PS01,P1,
B,Bromsgrove District Council,Environmental Services,Internal Drainage Levy Work,Premise Related Expenditure,Water Services,B52,Sewers/watercourses maint'ce,08/07/2014,186835,294.00,Revenue income and expenditure,The Environment Agency,1223,1,VO,201404,LD02,P4,
B,Bromsgrove District Council,Surpluses/deficits on trading undertakings,Depot Services,Transport Related Expenditure,Direct Transport Costs,C01,Vehicle repairs/maint'ce,08/07/2014,186836,24.78,Revenue income and expenditure,Dennis Eagle Ltd,1191,1,VO,201404,DW11,P1,
B,Bromsgrove District Council,Not BVACOP Service,Not BVACOP Sub Division,Current Assets,Stocks,300,Stock Movement,08/07/2014,186836,"1,867.23",,Dennis Eagle Ltd,1191,1,VO,201404,XX611,P1,
B,Bromsgrove District Council,Central Services to the Public,Registration of Electors,Supplies and Services,Communication and computing,D53,Postage/packaging,04/07/2014,186840,0.30,Revenue income and expenditure,Royal Mail Group Plc,1558,1,VN,201404,EL00,P1,
B,Bromsgrove District Council,,,Supplies and Services,Communication and computing,D50,Debt Collection Fees,07/07/2014,186841,13.81,Revenue income and expenditure,Bristow & Sutor,1085,1,VN,201404,RB10,P1,
B,Bromsgrove District Council,,,Supplies and Services,Communication and computing,D50,Debt Collection Fees,07/07/2014,186842,21.00,Revenue income and expenditure,Bristow & Sutor,1085,1,VN,201404,RB10,P1,
B,Bromsgrove District Council,Surpluses/deficits on trading undertakings,Internal Business Units and Support Services,Premise Related Expenditure,Fixtures and Fittings,B63,Internal fixtures/fittings - maint'ce,22/07/2014,186844,137.56,Revenue income and expenditure,Stannah Lift Services Limited,2122,1,VO,201404,ES20,P1,
B,Bromsgrove District Council,Surpluses/deficits on trading undertakings,Depot Services,Premise Related Expenditure,"Repairs, alterations and maint. of buildings",B03,Internal repair/maint. (reg'd for gross pay't),08/07/2014,186845,263.14,Revenue income and expenditure,Associated Electrical Limited,10378,1,VO,201404,DP02,P1,
B,Bromsgrove District Council,Surpluses/deficits on trading undertakings,Depot Services,Premise Related Expenditure,"Repairs, alterations and maint. of buildings",B03,Internal repair/maint. (reg'd for gross pay't),08/07/2014,186845,255.00,Revenue income and expenditure,Associated Electrical Limited,10378,1,VO,201404,DT41,P1,
B,Bromsgrove District Council,Not BVACOP Service,Not BVACOP Sub Division,Current Assets,Stocks,300,Stock Movement,08/07/2014,186846,193.98,,Wurth UK Ltd,10087,1,VO,201404,XX611,P1,
B,Bromsgrove District Council,Not BVACOP Service,Not BVACOP Sub Division,Current Assets,Stocks,300,Stock Movement,08/07/2014,186847,119.58,,Spaldings (UK) Ltd,1600,1,VO,201404,XX611,P1,
B,Bromsgrove District Council,Surpluses/deficits on trading undertakings,Internal Business Units and Support Services,Supplies and Services,"Equipment, furniture and materials",D01,Equipment - purchase,08/07/2014,186848,43.99,Revenue income and expenditure,Arco Ltd,1027,1,VO,201404,ES20,P1,
B,Bromsgrove District Council,Surpluses/deficits on trading undertakings,Depot Services,Supplies and Services,"Equipment, furniture and materials",D06,Materials - purchased,08/07/2014,186849,8.00,Revenue income and expenditure,Arco Ltd,1027,1,VO,201404,DP02,P1,
B,Bromsgrove District Council,Not BVACOP Service,Not BVACOP Sub Division,Current Assets,Stocks,300,Stock Movement,08/07/2014,186849,70.64,,Arco Ltd,1027,1,VO,201404,XX611,P1,
B,Bromsgrove District Council,Surpluses/deficits on trading undertakings,Depot Services,Supplies and Services,"Equipment, furniture and materials",D03,Equipment - rental/lease,09/07/2014,186850,76.80,Revenue income and expenditure,Safety Kleen UK Ltd,1564,1,VO,201404,DT41,P1,
B,Bromsgrove District Council,Surpluses/deficits on trading undertakings,Depot Services,Supplies and Services,"Equipment, furniture and materials",D02,Equipment - maintenance,09/07/2014,186852,214.94,Revenue income and expenditure,System Chassijet Ltd,2425,1,VO,201404,DP02,P1,
B,Bromsgrove District Council,Surpluses/deficits on trading undertakings,Depot Services,Transport Related Expenditure,Direct Transport Costs,C01,Vehicle repairs/maint'ce,14/07/2014,186853,11.28,Revenue income and expenditure,Ron Smith & Co Ltd,1854,1,VO,201404,DW32,P1,
B,Bromsgrove District Council,Surpluses/deficits on trading undertakings,Depot Services,Supplies and Services,Communication and computing,D53,Postage/packaging,14/07/2014,186853,3.00,Revenue income and expenditure,Ron Smith & Co Ltd,1854,1,VO,201404,DW32,P1,
B,Bromsgrove District Council,Surpluses/deficits on trading undertakings,Depot Services,Transport Related Expenditure,Direct Transport Costs,C01,Vehicle repairs/maint'ce,09/07/2014,186854,221.00,Revenue income and expenditure,Imperial Commercials Ltd ( Derby),10589,1,VO,201404,DW14,P3,
B,Bromsgrove District Council,Surpluses/deficits on trading undertakings,Depot Services,Transport Related Expenditure,Direct Transport Costs,C01,Vehicle repairs/maint'ce,09/07/2014,186854,80.00,Revenue income and expenditure,Imperial Commercials Ltd ( Derby),10589,1,VO,201404,DW14,P1,
B,Bromsgrove District Council,Surpluses/deficits on trading undertakings,Depot Services,Transport Related Expenditure,Direct Transport Costs,C01,Vehicle repairs/maint'ce,09/07/2014,186855,40.00,Revenue income and expenditure,Imperial Commercials Ltd ( Derby),10589,1,VO,201404,DW14,P1,
B,Bromsgrove District Council,Surpluses/deficits on trading undertakings,Depot Services,Transport Related Expenditure,Direct Transport Costs,C01,Vehicle repairs/maint'ce,09/07/2014,186855,93.00,Revenue income and expenditure,Imperial Commercials Ltd ( Derby),10589,1,VO,201404,DW14,P3,
B,Bromsgrove District Council,Surpluses/deficits on trading undertakings,Depot Services,Supplies and Services,"Equipment, furniture and materials",D02,Equipment - maintenance,09/07/2014,186858,355.00,Revenue income and expenditure,Mercian Lifting Gear Limited,1435,1,VO,201404,DP02,P1,
B,Bromsgrove District Council,Not BVACOP Service,Not BVACOP Sub Division,Capital Expenditure,Operational Land and Buildings,X04,Other contract payments,09/07/2014,186860,840.00,Capital income and expenditure,Cemetery Develop Services Ltd,9734,1,VO,201404,CAPS,P1,
B,Bromsgrove District Council,Surpluses/deficits on trading undertakings,Depot Services,Transport Related Expenditure,Contract Hire and operating leases,C31,Contract hire of vehicles,16/07/2014,186863,850.00,Revenue income and expenditure,Gulliver's Truck Hire Ltd,10600,1,VO,201404,DW11,P1,
B,Bromsgrove District Council,Surpluses/deficits on trading undertakings,Depot Services,Transport Related Expenditure,Contract Hire and operating leases,C31,Contract hire of vehicles,14/07/2014,186864,165.00,Revenue income and expenditure,Gulliver's Truck Hire Ltd,10600,1,VO,201404,DW21,P1,
B,Bromsgrove District Council,Surpluses/deficits on trading undertakings,Internal Business Units and Support Services,Employees,Indirect Employee Expenses,A30,Childminding allowances,08/07/2014,186867,41.18,Revenue income and expenditure,Wider Plan Ltd,10112,1,VN,201404,PS04,P1,
B,Bromsgrove District Council,Cultural and Related Services,Sports Development and community recreation,Third Party Payments,Other Local authorities,E33,Shared Service Expend - RBC,25/07/2014,186870,"14,976.62",Revenue income and expenditure,Redditch Borough Council,1533,5,VN,201404,SD22,P1,
B,Bromsgrove District Council,Cultural and Related Services,Arts Development and Support,Third Party Payments,Other Local authorities,E33,Shared Service Expend - RBC,25/07/2014,186870,"4,373.25",Revenue income and expenditure,Redditch Borough Council,1533,5,VN,201404,AR03,P1,
B,Bromsgrove District Council,Cultural and Related Services,Arts Development and Support,Third Party Payments,Other Local authorities,E33,Shared Service Expend - RBC,25/07/2014,186870,"-30,594.08",Revenue income and expenditure,Redditch Borough Council,1533,5,VN,201404,AR01,P1,
B,Bromsgrove District Council,Cultural and Related Services,Sports Development and community recreation,Third Party Payments,Other Local authorities,E33,Shared Service Expend - RBC,25/07/2014,186870,"3,068.74",Revenue income and expenditure,Redditch Borough Council,1533,5,VN,201404,SD21,P1,
B,Bromsgrove District Council,Cultural and Related Services,Arts Development and Support,Third Party Payments,Other Local authorities,E33,Shared Service Expend - RBC,25/07/2014,186870,-145.25,Revenue income and expenditure,Redditch Borough Council,1533,5,VN,201404,AR08,P1,
B,Bromsgrove District Council,Cultural and Related Services,Arts Development and Support,Third Party Payments,Other Local authorities,E33,Shared Service Expend - RBC,25/07/2014,186870,381.79,Revenue income and expenditure,Redditch Borough Council,1533,5,VN,201404,AR16,P1,
B,Bromsgrove District Council,Cultural and Related Services,Tree Planting Services,Third Party Payments,Other Local authorities,E33,Shared Service Expend - RBC,25/07/2014,186870,"5,854.75",Revenue income and expenditure,Redditch Borough Council,1533,5,VN,201404,TP01,P1,
B,Bromsgrove District Council,Cultural and Related Services,Arts Development and Support,Third Party Payments,Other Local authorities,E33,Shared Service Expend - RBC,25/07/2014,186870,2.00,Revenue income and expenditure,Redditch Borough Council,1533,5,VN,201404,AR00,P1,
B,Bromsgrove District Council,Cultural and Related Services,Arts Development and Support,Third Party Payments,Other Local authorities,E33,Shared Service Expend - RBC,25/07/2014,186870,"4,001.62",Revenue income and expenditure,Redditch Borough Council,1533,5,VN,201404,AR02,P1,
B,Bromsgrove District Council,Cultural and Related Services,Arts Development and Support,Third Party Payments,Other Local authorities,E33,Shared Service Expend - RBC,25/07/2014,186870,-345.75,Revenue income and expenditure,Redditch Borough Council,1533,5,VN,201404,AR07,P1,
B,Bromsgrove District Council,Highways and transport services,Street Lighting,Third Party Payments,Other Local authorities,E33,Shared Service Expend - RBC,25/07/2014,186870,"2,328.98",Revenue income and expenditure,Redditch Borough Council,1533,5,VN,201404,HW08,P1,
B,Bromsgrove District Council,Cultural and Related Services,Community parks and open spaces,Third Party Payments,Other Local authorities,E33,Shared Service Expend - RBC,25/07/2014,186872,"13,833.98",Revenue income and expenditure,Redditch Borough Council,1533,5,VN,201404,RG00,P1,
B,Bromsgrove District Council,Cultural and Related Services,Sports Development and community recreation,Third Party Payments,Other Local authorities,E33,Shared Service Expend - RBC,25/07/2014,186872,"3,906.59",Revenue income and expenditure,Redditch Borough Council,1533,5,VN,201404,BE24,P1,
B,Bromsgrove District Council,Cultural and Related Services,Sports Development and community recreation,Third Party Payments,Other Local authorities,E33,Shared Service Expend - RBC,25/07/2014,186872,-690.80,Revenue income and expenditure,Redditch Borough Council,1533,5,VN,201404,BE29,P1,
B,Bromsgrove District Council,Cultural and Related Services,Community Centres,Third Party Payments,Other Local authorities,E33,Shared Service Expend - RBC,25/07/2014,186872,"3,681.89",Revenue income and expenditure,Redditch Borough Council,1533,5,VN,201404,SS01,P1,
B,Bromsgrove District Council,Surpluses/deficits on trading undertakings,Internal Business Units and Support Services,Third Party Payments,Other Local authorities,E33,Shared Service Expend - RBC,25/07/2014,186872,"22,686.01",Revenue income and expenditure,Redditch Borough Council,1533,5,VN,201404,ES20,P1,
B,Bromsgrove District Council,Cultural and Related Services,Sports Development and community recreation,Third Party Payments,Other Local authorities,E33,Shared Service Expend - RBC,25/07/2014,186872,"10,578.98",Revenue income and expenditure,Redditch Borough Council,1533,5,VN,201404,BE26,P1,
B,Bromsgrove District Council,Cultural and Related Services,Sports Development and community recreation,Third Party Payments,Other Local authorities,E33,Shared Service Expend - RBC,25/07/2014,186872,"1,883.91",Revenue income and expenditure,Redditch Borough Council,1533,5,VN,201404,BE27,P1,
B,Bromsgrove District Council,Cultural and Related Services,Sports Development and community recreation,Third Party Payments,Other Local authorities,E33,Shared Service Expend - RBC,25/07/2014,186872,"4,123.74",Revenue income and expenditure,Redditch Borough Council,1533,5,VN,201404,BE25,P1,
B,Bromsgrove District Council,Cultural and Related Services,Sports Development and community recreation,Third Party Payments,Other Local authorities,E33,Shared Service Expend - RBC,25/07/2014,186872,"-6,060.05",Revenue income and expenditure,Redditch Borough Council,1533,5,VN,201404,BE30,P1,
B,Bromsgrove District Council,Cultural and Related Services,Sports Development and community recreation,Third Party Payments,Other Local authorities,E33,Shared Service Expend - RBC,25/07/2014,186872,"-1,708.62",Revenue income and expenditure,Redditch Borough Council,1533,5,VN,201404,BE32,P1,
B,Bromsgrove District Council,Cultural and Related Services,Sports Development and community recreation,Third Party Payments,Other Local authorities,E33,Shared Service Expend - RBC,25/07/2014,186872,"1,117.80",Revenue income and expenditure,Redditch Borough Council,1533,5,VN,201404,BE22,P1,
B,Bromsgrove District Council,Cultural and Related Services,Sports Development and community recreation,Third Party Payments,Other Local authorities,E33,Shared Service Expend - RBC,25/07/2014,186872,199.09,Revenue income and expenditure,Redditch Borough Council,1533,5,VN,201404,BE33,P1,
B,Bromsgrove District Council,Cultural and Related Services,Sports Development and community recreation,Third Party Payments,Other Local authorities,E33,Shared Service Expend - RBC,25/07/2014,186872,"-2,307.25",Revenue income and expenditure,Redditch Borough Council,1533,5,VN,201404,BE20,P1,
B,Bromsgrove District Council,Surpluses/deficits on trading undertakings,Internal Business Units and Support Services,Supplies and Services,Communication and computing,D57,Computer - software,08/07/2014,186875,"65,000.00",Revenue income and expenditure,Capita Business Services Ltd,1107,1,VN,201404,IT12,P1,
B,Bromsgrove District Council,Not BVACOP Service,Not BVACOP Sub Division,Current Assets,Stocks,300,Stock Movement,09/07/2014,186876,116.00,,Imperial Commercials Ltd. (Bristol),1403,1,VO,201404,XX611,P1,
B,Bromsgrove District Council,Surpluses/deficits on trading undertakings,Depot Services,Supplies and Services,"Equipment, furniture and materials",D06,Materials - purchased,11/07/2014,186877,60.00,Revenue income and expenditure,Senate Electrical,9582,1,VO,201404,DP02,P1,
B,Bromsgrove District Council,Surpluses/deficits on trading undertakings,Depot Services,Supplies and Services,"Equipment, furniture and materials",D06,Materials - purchased,11/07/2014,186878,60.00,Revenue income and expenditure,Senate Electrical,9582,1,VO,201404,DP02,P1,
B,Bromsgrove District Council,Central Services to the Public,Registration of Electors,Supplies and Services,Communication and computing,D51,Printing and stationery,09/07/2014,186879,101.36,Revenue income and expenditure,Office Depot UK Ltd,6249,1,VO,201404,EL00,P1,
B,Bromsgrove District Council,Surpluses/deficits on trading undertakings,Depot Services,Supplies and Services,Miscellaneous expenses,D88,Miscellaneous expenses,09/07/2014,186881,73.92,Revenue income and expenditure,Mercia Waste Management Ltd,1433,1,VO,201404,DW32,P1,
B,Bromsgrove District Council,Planning and Development Services,Advice,Supplies and Services,Communication and computing,D54,Advertising (general),24/07/2014,186882,286.43,Revenue income and expenditure,TMP (UK) Ltd,1646,1,VO,201404,DC00,P1,
B,Bromsgrove District Council,Not BVACOP Service,Not BVACOP Sub Division,Current Assets,Stocks,300,Stock Movement,09/07/2014,186885,66.00,,Focal Image,1252,1,VO,201404,XX611,P1,
B,Bromsgrove District Council,Not BVACOP Service,Not BVACOP Sub Division,Current Assets,Stocks,300,Stock Movement,09/07/2014,186886,55.00,,Focal Image,1252,1,VO,201404,XX611,P1,
B,Bromsgrove District Council,Not BVACOP Service,Not BVACOP Sub Division,Current Assets,Stocks,300,Stock Movement,09/07/2014,186887,150.00,,Focal Image,1252,1,VO,201404,XX611,P1,
B,Bromsgrove District Council,Surpluses/deficits on trading undertakings,Internal Business Units and Support Services,Supplies and Services,Services,D47,Consultants' fees,07/07/2014,186889,543.34,Revenue income and expenditure,Birmingham City Council,1070,5,VN,201404,LS12,P1,
B,Bromsgrove District Council,Surpluses/deficits on trading undertakings,Internal Business Units and Support Services,Supplies and Services,Services,D48,Contractors' fees/charges/SLA's,22/07/2014,186894,60.00,Revenue income and expenditure,Positive Environment Ltd,10010,1,VO,201404,ES20,P1,
B,Bromsgrove District Council,General Fund Housing Services,Travellers Sites,Supplies and Services,Services,D48,Contractors' fees/charges/SLA's,09/07/2014,186898,0.00,Revenue income and expenditure,WD Ornamental Ironwork,10033,2,VO,201404,HG02,P1,
B,Bromsgrove District Council,General Fund Housing Services,Travellers Sites,Premise Related Expenditure,"Repairs, alterations and maint. of buildings",B04,Repair/maint'ce (CIS tax deductible),09/07/2014,186898,490.00,Revenue income and expenditure,WD Ornamental Ironwork,10033,2,VO,201404,HG02,P1,
B,Bromsgrove District Council,Surpluses/deficits on trading undertakings,Internal Business Units and Support Services,Supplies and Services,Communication and computing,D53,Postage/packaging,04/07/2014,186902,1.18,Revenue income and expenditure,Royal Mail Group Plc,1558,1,VN,201404,ES20,P1,
B,Bromsgrove District Council,Surpluses/deficits on trading undertakings,Internal Business Units and Support Services,Supplies and Services,Communication and computing,D59,Telephones,14/07/2014,186905,66.00,Revenue income and expenditure,British Telecommunications plc,1098,1,VN,201404,IT12,P1,
B,Bromsgrove District Council,Surpluses/deficits on trading undertakings,Internal Business Units and Support Services,Supplies and Services,Communication and computing,D59,Telephones,14/07/2014,186905,13.50,Revenue income and expenditure,British Telecommunications plc,1098,1,VN,201404,IT12,P4,
B,Bromsgrove District Council,Surpluses/deficits on trading undertakings,Internal Business Units and Support Services,Supplies and Services,Communication and computing,D59,Telephones,14/07/2014,186906,13.50,Revenue income and expenditure,British Telecommunications plc,1098,1,VN,201404,IT12,P4,
B,Bromsgrove District Council,Surpluses/deficits on trading undertakings,Internal Business Units and Support Services,Supplies and Services,Communication and computing,D59,Telephones,14/07/2014,186906,66.00,Revenue income and expenditure,British Telecommunications plc,1098,1,VN,201404,IT12,P1,
B,Bromsgrove District Council,Surpluses/deficits on trading undertakings,Internal Business Units and Support Services,Supplies and Services,Communication and computing,D51,Printing and stationery,09/07/2014,186907,11.54,Revenue income and expenditure,Minilabel Ltd,10268,1,VO,201404,LS11,P1,
B,Bromsgrove District Council,Surpluses/deficits on trading undertakings,Depot Services,Supplies and Services,"Equipment, furniture and materials",D03,Equipment - rental/lease,21/07/2014,186909,367.21,Revenue income and expenditure,Berendsen UK Ltd,9560,1,VO,201404,DT41,P1,
B,Bromsgrove District Council,Surpluses/deficits on trading undertakings,Depot Services,Supplies and Services,"Equipment, furniture and materials",D03,Equipment - rental/lease,21/07/2014,186909,128.24,Revenue income and expenditure,Berendsen UK Ltd,9560,1,VO,201404,DP02,P1,
B,Bromsgrove District Council,Surpluses/deficits on trading undertakings,Depot Services,Supplies and Services,"Equipment, furniture and materials",D02,Equipment - maintenance,21/07/2014,186909,74.83,Revenue income and expenditure,Berendsen UK Ltd,9560,1,VO,201404,DP02,P1,
B,Bromsgrove District Council,Surpluses/deficits on trading undertakings,Internal Business Units and Support Services,Supplies and Services,Communication and computing,D53,Postage/packaging,22/07/2014,186913,90.00,Revenue income and expenditure,Royal Mail Group Plc,1558,1,VN,201404,LS05,P1,
B,Bromsgrove District Council,Surpluses/deficits on trading undertakings,Internal Business Units and Support Services,Supplies and Services,Communication and computing,D56,Computer - hardware,21/07/2014,186919,10.00,Revenue income and expenditure,Bromsgrove District Housing Trust,2969,1,VO,201404,IT12,P4,
B,Bromsgrove District Council,Surpluses/deficits on trading undertakings,Internal Business Units and Support Services,Supplies and Services,Communication and computing,D56,Computer - hardware,09/07/2014,186920,"1,590.00",Revenue income and expenditure,Dimension Data UK,4867,1,VO,201404,IT12,P1,
B,Bromsgrove District Council,Surpluses/deficits on trading undertakings,Internal Business Units and Support Services,Supplies and Services,Communication and computing,D57,Computer - software,30/07/2014,186922,"5,088.50",Revenue income and expenditure,Insight Direct (UK) Ltd,1350,1,VO,201404,IT12,P1,
B,Bromsgrove District Council,Surpluses/deficits on trading undertakings,Internal Business Units and Support Services,Supplies and Services,Communication and computing,D57,Computer - software,30/07/2014,186922,"5,086.50",Revenue income and expenditure,Insight Direct (UK) Ltd,1350,1,VO,201404,IT10,P1,
B,Bromsgrove District Council,Surpluses/deficits on trading undertakings,Internal Business Units and Support Services,Supplies and Services,Services,D43,Training fees,16/07/2014,186923,54.00,Revenue income and expenditure,MBL Seminars Ltd,6246,1,VO,201404,LS00,P1,
B,Bromsgrove District Council,Surpluses/deficits on trading undertakings,Internal Business Units and Support Services,Supplies and Services,Services,D43,Training fees,16/07/2014,186924,54.00,Revenue income and expenditure,MBL Seminars Ltd,6246,1,VO,201404,LS00,P1,
B,Bromsgrove District Council,Surpluses/deficits on trading undertakings,Internal Business Units and Support Services,Supplies and Services,Services,D43,Training fees,16/07/2014,186925,54.00,Revenue income and expenditure,MBL Seminars Ltd,6246,1,VO,201404,LS00,P1,
B,Bromsgrove District Council,Surpluses/deficits on trading undertakings,Internal Business Units and Support Services,Supplies and Services,Services,D43,Training fees,16/07/2014,186926,54.00,Revenue income and expenditure,MBL Seminars Ltd,6246,1,VO,201404,LS00,P1,
B,Bromsgrove District Council,Surpluses/deficits on trading undertakings,Internal Business Units and Support Services,Supplies and Services,Services,D43,Training fees,16/07/2014,186927,54.00,Revenue income and expenditure,MBL Seminars Ltd,6246,1,VO,201404,LS00,P1,
B,Bromsgrove District Council,Planning and Development Services,Advice,Employees,Direct Employee Expenses,A10,Agency workers,03/07/2014,186928,"2,218.60",Revenue income and expenditure,Jane Fray,10388,1,VO,201404,DC00,P4,
B,Bromsgrove District Council,Surpluses/deficits on trading undertakings,Internal Business Units and Support Services,Supplies and Services,Communication and computing,D57,Computer - software,03/07/2014,186929,"10,055.58",Revenue income and expenditure,Lucid IT Consultancy Ltd,10525,1,VO,201404,IT12,P1,
B,Bromsgrove District Council,Surpluses/deficits on trading undertakings,Internal Business Units and Support Services,Supplies and Services,Communication and computing,D57,Computer - software,03/07/2014,186929,"10,055.57",Revenue income and expenditure,Lucid IT Consultancy Ltd,10525,1,VO,201404,IT10,P1,
B,Bromsgrove District Council,Not BVACOP Service,Not BVACOP Sub Division,Capital Expenditure,Operational Land and Buildings,X04,Other contract payments,03/07/2014,186930,"89,025.00",Capital income and expenditure,Sutcliffe Play South West,5861,1,VO,201404,CAPC,P1,
B,Bromsgrove District Council,Surpluses/deficits on trading undertakings,Depot Services,Supplies and Services,"Clothes, uniform and laundry",D31,Clothing and uniforms,10/07/2014,186934,30.00,Revenue income and expenditure,Focal Image,1252,1,VN,201404,DW11,P1,
B,Bromsgrove District Council,,,Employees,Direct Employee Expenses,A10,Agency workers,10/07/2014,186935,"1,004.50",Revenue income and expenditure,Morgan Hunt UK Ltd,9519,1,VN,201404,RB10,P1,
B,Bromsgrove District Council,Surpluses/deficits on trading undertakings,Depot Services,Employees,Direct Employee Expenses,A10,Agency workers,15/07/2014,186936,"5,925.03",Revenue income and expenditure,MatrixSCM Ltd,9043,1,VN,201404,DW11,P1,
B,Bromsgrove District Council,Surpluses/deficits on trading undertakings,Depot Services,Employees,Direct Employee Expenses,A10,Agency workers,15/07/2014,186936,"1,858.10",Revenue income and expenditure,MatrixSCM Ltd,9043,1,VN,201404,DW21,P1,
B,Bromsgrove District Council,Surpluses/deficits on trading undertakings,Depot Services,Employees,Direct Employee Expenses,A10,Agency workers,14/07/2014,186937,"6,730.38",Revenue income and expenditure,MatrixSCM Ltd,9043,1,VN,201404,DW11,P1,
B,Bromsgrove District Council,Surpluses/deficits on trading undertakings,Depot Services,Employees,Direct Employee Expenses,A10,Agency workers,14/07/2014,186937,"1,540.01",Revenue income and expenditure,MatrixSCM Ltd,9043,1,VN,201404,DW21,P1,
B,Bromsgrove District Council,,,Supplies and Services,Communication and computing,D50,Debt Collection Fees,10/07/2014,186940,21.00,Revenue income and expenditure,Bristow & Sutor,1085,1,VN,201404,RB10,P1,
B,Bromsgrove District Council,,,Supplies and Services,Communication and computing,D50,Debt Collection Fees,10/07/2014,186941,37.46,Revenue income and expenditure,Bristow & Sutor,1085,1,VN,201404,RB10,P1,
B,Bromsgrove District Council,,,Employees,Direct Employee Expenses,A10,Agency workers,10/07/2014,186942,882.00,Revenue income and expenditure,Morgan Hunt UK Ltd,9519,1,VN,201404,RB10,P1,
B,Bromsgrove District Council,Planning and Development Services,Grants,Supplies and Services,Grants and subscriptions,D71,Grants,14/07/2014,186946,"9,750.00",Revenue income and expenditure,Bromsgrove International Young Musician's Comp,10663,1,VN,201404,GG01,P5,
B,Bromsgrove District Council,Surpluses/deficits on trading undertakings,Depot Services,Premise Related Expenditure,Water Services,B51,Water charges,10/07/2014,186947,12.13,Revenue income and expenditure,Severn Trent Water Ltd,2416,1,VN,201404,DW32,P3,
B,Bromsgrove District Council,Cultural and Related Services,Community parks and open spaces,Premise Related Expenditure,Water Services,B51,Water charges,25/07/2014,186948,255.91,Revenue income and expenditure,Severn Trent Water Ltd,2416,1,VN,201404,SP00,P3,
B,Bromsgrove District Council,Central Services to the Public,Conducting Elections,Supplies and Services,Miscellaneous expenses,D82,Non reclaimable VAT,10/07/2014,186951,236.80,Revenue income and expenditure,Royal Mail Group Plc,1558,1,VN,201404,EL05,0,
B,Bromsgrove District Council,Central Services to the Public,Conducting Elections,Supplies and Services,Miscellaneous expenses,D82,Non reclaimable VAT,10/07/2014,186951,167.66,Revenue income and expenditure,Royal Mail Group Plc,1558,1,VN,201404,EL13,0,
B,Bromsgrove District Council,Central Services to the Public,Conducting Elections,Supplies and Services,Communication and computing,D53,Postage/packaging,10/07/2014,186951,838.30,Revenue income and expenditure,Royal Mail Group Plc,1558,1,VN,201404,EL13,N1,
B,Bromsgrove District Council,Central Services to the Public,Conducting Elections,Supplies and Services,Communication and computing,D53,Postage/packaging,10/07/2014,186951,"1,184.00",Revenue income and expenditure,Royal Mail Group Plc,1558,1,VN,201404,EL05,N1,
B,Bromsgrove District Council,Central Services to the Public,Conducting Elections,Supplies and Services,Communication and computing,D53,Postage/packaging,10/07/2014,186951,838.30,Revenue income and expenditure,Royal Mail Group Plc,1558,1,VN,201404,EL10,P1,
B,Bromsgrove District Council,Cultural and Related Services,Outdoor sports and recreation facilities,Supplies and Services,Miscellaneous expenses,D99,Workflow only - must change code before saving,23/07/2014,186952,81.16,Revenue income and expenditure,Severn Trent Water Ltd,2416,1,VN,201404,RG62,0,
B,Bromsgrove District Council,Planning and Development Services,Supplementary planning guidance,Supplies and Services,Communication and computing,D51,Printing and stationery,28/07/2014,186953,4.56,Revenue income and expenditure,Office Depot UK Ltd,6249,1,VN,201404,LP01,P1,
B,Bromsgrove District Council,Planning and Development Services,Advice,Supplies and Services,Communication and computing,D51,Printing and stationery,28/07/2014,186953,128.20,Revenue income and expenditure,Office Depot UK Ltd,6249,1,VN,201404,DC00,P1,
B,Bromsgrove District Council,Surpluses/deficits on trading undertakings,Depot Services,Supplies and Services,Communication and computing,D51,Printing and stationery,28/07/2014,186953,55.28,Revenue income and expenditure,Office Depot UK Ltd,6249,1,VN,201404,DP02,P1,
B,Bromsgrove District Council,,,Supplies and Services,Communication and computing,D51,Printing and stationery,28/07/2014,186953,11.00,Revenue income and expenditure,Office Depot UK Ltd,6249,1,VN,201404,CC01,P1,
B,Bromsgrove District Council,Surpluses/deficits on trading undertakings,Internal Business Units and Support Services,Supplies and Services,Communication and computing,D51,Printing and stationery,28/07/2014,186953,15.10,Revenue income and expenditure,Office Depot UK Ltd,6249,1,VN,201404,IT12,P1,
B,Bromsgrove District Council,Surpluses/deficits on trading undertakings,Internal Business Units and Support Services,Supplies and Services,Communication and computing,D51,Printing and stationery,28/07/2014,186953,11.63,Revenue income and expenditure,Office Depot UK Ltd,6249,1,VN,201404,LS00,P1,
B,Bromsgrove District Council,,,Third Party Payments,Other Local authorities,E33,Shared Service Expend - RBC,14/07/2014,186956,"11,796.89",Revenue income and expenditure,Redditch Borough Council,1533,5,VN,201404,CD34,P1,
B,Bromsgrove District Council,Surpluses/deficits on trading undertakings,Depot Services,Third Party Payments,Other Local authorities,E33,Shared Service Expend - RBC,10/07/2014,186957,"9,612.30",Revenue income and expenditure,Redditch Borough Council,1533,5,VN,201404,DP08,P1,
B,Bromsgrove District Council,,,Third Party Payments,Other Local authorities,E33,Shared Service Expend - RBC,15/07/2014,186959,"11,456.73",Revenue income and expenditure,Redditch Borough Council,1533,5,VN,201404,CD38,0,
B,Bromsgrove District Council,,,Third Party Payments,Other Local authorities,E33,Shared Service Expend - RBC,15/07/2014,186959,"43,465.09",Revenue income and expenditure,Redditch Borough Council,1533,5,VN,201404,CD32,0,
B,Bromsgrove District Council,Highways and transport services,Off-street Parking,Supplies and Services,Communication and computing,D57,Computer - software,11/07/2014,186960,450.00,Revenue income and expenditure,Chipside Limited,8226,1,VN,201404,CP00,P1,
B,Bromsgrove District Council,Planning and Development Services,Advice,Supplies and Services,"Equipment, furniture and materials",D01,Equipment - purchase,10/07/2014,186963,"3,990.00",Revenue income and expenditure,IDOX Software Ltd,6852,1,VO,201404,DC00,P1,
B,Bromsgrove District Council,Planning and Development Services,Advice,Supplies and Services,Services,D47,Consultants' fees,21/07/2014,186964,550.00,Revenue income and expenditure,Kernon Countryside Consultants,1381,1,VO,201404,DC00,P1,
B,Bromsgrove District Council,Planning and Development Services,Advice,Supplies and Services,Services,D47,Consultants' fees,16/07/2014,186965,117.50,Revenue income and expenditure,Kernon Countryside Consultants,1381,1,VO,201404,DC00,P1,
B,Bromsgrove District Council,Planning and Development Services,Advice,Employees,Direct Employee Expenses,A10,Agency workers,10/07/2014,186966,"1,146.75",Revenue income and expenditure,Price Planning Associates,5196,1,VO,201404,DC00,P4,
B,Bromsgrove District Council,Planning and Development Services,Sustainable development strategies,Supplies and Services,Services,D47,Consultants' fees,10/07/2014,186967,"1,728.00",Revenue income and expenditure,HELEN WILSON ASSOCIATES LTD,10701,1,VO,201404,LP06,P1,
B,Bromsgrove District Council,Surpluses/deficits on trading undertakings,Internal Business Units and Support Services,Supplies and Services,Services,D49,Miscellaneous services,10/07/2014,186968,15.00,Revenue income and expenditure,Stephanie Sergeant,7675,1,VO,201404,LS05,P4,
B,Bromsgrove District Council,Environmental Services,Cemeteries,Supplies and Services,Services,D48,Contractors' fees/charges/SLA's,25/07/2014,186971,621.00,Revenue income and expenditure,Peter Price,7730,1,VO,201404,CE01,P4,
B,Bromsgrove District Council,Planning and Development Services,Advice,Supplies and Services,Services,D47,Consultants' fees,10/07/2014,186973,165.00,Revenue income and expenditure,Joe Holyoak,6045,1,VO,201404,DC00,P4,
B,Bromsgrove District Council,Surpluses/deficits on trading undertakings,Depot Services,Supplies and Services,"Equipment, furniture and materials",D02,Equipment - maintenance,10/07/2014,186975,"2,337.18",Revenue income and expenditure,Trojan Garage Equipment Services Ltd,1659,1,VO,201404,DT41,P1,
B,Bromsgrove District Council,Surpluses/deficits on trading undertakings,Internal Business Units and Support Services,Supplies and Services,Communication and computing,D55,Computer - general costs,14/07/2014,186976,763.38,Revenue income and expenditure,SiteImprove,8765,1,VO,201404,IT10,P1,
B,Bromsgrove District Council,Surpluses/deficits on trading undertakings,Internal Business Units and Support Services,Supplies and Services,Communication and computing,D55,Computer - general costs,14/07/2014,186976,763.38,Revenue income and expenditure,SiteImprove,8765,1,VO,201404,IT12,P1,
B,Bromsgrove District Council,Not BVACOP Service,Not BVACOP Sub Division,Current Assets,Stocks,300,Stock Movement,10/07/2014,186977,195.00,,Magnatec (Stourbridge) Ltd,5294,1,VO,201404,XX611,P1,
B,Bromsgrove District Council,,,Supplies and Services,Communication and computing,D57,Computer - software,21/07/2014,186983,"2,007.00",Revenue income and expenditure,Capita Business Services Ltd,1107,1,VN,201404,RB10,P1,
B,Bromsgrove District Council,Surpluses/deficits on trading undertakings,Internal Business Units and Support Services,Supplies and Services,Communication and computing,D59,Telephones,15/07/2014,186986,253.94,Revenue income and expenditure,Gamma Business Communications Ltd,9982,1,VN,201404,IT12,P1,
B,Bromsgrove District Council,Surpluses/deficits on trading undertakings,Depot Services,Supplies and Services,Communication and computing,D53,Postage/packaging,15/07/2014,186987,"1,258.00",Revenue income and expenditure,Neopost Finance Ltd,6103,1,VN,201404,CD20,P1,
B,Bromsgrove District Council,Surpluses/deficits on trading undertakings,Internal Business Units and Support Services,Supplies and Services,Communication and computing,D53,Postage/packaging,23/07/2014,186989,260.84,Revenue income and expenditure,Royal Mail Group Plc,1558,1,VN,201404,FS08,P1,
B,Bromsgrove District Council,Not BVACOP Service,Not BVACOP Sub Division,Current Assets,Stocks,300,Stock Movement,22/07/2014,186991,236.31,,PCS Jangro,7294,1,VO,201404,XX611,P1,
B,Bromsgrove District Council,Not BVACOP Service,Not BVACOP Sub Division,Current Assets,Stocks,300,Stock Movement,22/07/2014,186992,216.41,,PCS Jangro,7294,1,VO,201404,XX611,P1,
B,Bromsgrove District Council,Environmental Services,Cemeteries,Supplies and Services,"Equipment, furniture and materials",D06,Materials - purchased,15/07/2014,186993,83.30,Revenue income and expenditure,Broad Street D.I.Y,1089,1,VO,201404,CE01,P1,
B,Bromsgrove District Council,Environmental Services,Cemeteries,Supplies and Services,"Equipment, furniture and materials",D06,Materials - purchased,15/07/2014,186994,14.45,Revenue income and expenditure,Broad Street D.I.Y,1089,1,VO,201404,CE01,P1,
B,Bromsgrove District Council,Surpluses/deficits on trading undertakings,Depot Services,Supplies and Services,"Equipment, furniture and materials",D06,Materials - purchased,15/07/2014,186995,1.03,Revenue income and expenditure,Broad Street D.I.Y,1089,1,VO,201404,DS62,P1,
B,Bromsgrove District Council,Surpluses/deficits on trading undertakings,Depot Services,Supplies and Services,"Equipment, furniture and materials",D01,Equipment - purchase,15/07/2014,186995,14.26,Revenue income and expenditure,Broad Street D.I.Y,1089,1,VO,201404,DS62,P1,
B,Bromsgrove District Council,Surpluses/deficits on trading undertakings,Depot Services,Supplies and Services,"Equipment, furniture and materials",D06,Materials - purchased,15/07/2014,186997,6.75,Revenue income and expenditure,Broad Street D.I.Y,1089,1,VO,201404,DP02,P1,
B,Bromsgrove District Council,Not BVACOP Service,Not BVACOP Sub Division,Current Assets,Stocks,300,Stock Movement,15/07/2014,186997,86.22,,Broad Street D.I.Y,1089,1,VO,201404,XX611,P1,
B,Bromsgrove District Council,Surpluses/deficits on trading undertakings,Depot Services,Supplies and Services,"Equipment, furniture and materials",D06,Materials - purchased,15/07/2014,186998,7.49,Revenue income and expenditure,Broad Street D.I.Y,1089,1,VO,201404,DW21,P1,
B,Bromsgrove District Council,Surpluses/deficits on trading undertakings,Depot Services,Supplies and Services,"Equipment, furniture and materials",D06,Materials - purchased,15/07/2014,186998,2.02,Revenue income and expenditure,Broad Street D.I.Y,1089,1,VO,201404,DP02,P1,
B,Bromsgrove District Council,Not BVACOP Service,Not BVACOP Sub Division,Current Assets,Stocks,300,Stock Movement,15/07/2014,187000,66.00,,Tudor Environmental,10241,1,VO,201404,XX611,P1,
B,Bromsgrove District Council,Not BVACOP Service,Not BVACOP Sub Division,Current Assets,Stocks,300,Stock Movement,16/07/2014,187001,242.20,,Tudor Environmental,10241,1,VO,201404,XX611,P1,
B,Bromsgrove District Council,Surpluses/deficits on trading undertakings,Depot Services,Supplies and Services,"Equipment, furniture and materials",D06,Materials - purchased,22/07/2014,187003,153.60,Revenue income and expenditure,Morris Mica Hardware,1448,1,VO,201404,DW21,P1,
B,Bromsgrove District Council,Not BVACOP Service,Not BVACOP Sub Division,Current Assets,Stocks,300,Stock Movement,22/07/2014,187003,879.20,,Morris Mica Hardware,1448,1,VO,201404,XX611,P1,
B,Bromsgrove District Council,Environmental Services,Cemeteries,Supplies and Services,"Equipment, furniture and materials",D06,Materials - purchased,22/07/2014,187003,11.68,Revenue income and expenditure,Morris Mica Hardware,1448,1,VO,201404,CE01,P1,
B,Bromsgrove District Council,Surpluses/deficits on trading undertakings,Depot Services,Supplies and Services,"Equipment, furniture and materials",D06,Materials - purchased,22/07/2014,187003,9.63,Revenue income and expenditure,Morris Mica Hardware,1448,1,VO,201404,DP02,P1,
B,Bromsgrove District Council,Highways and transport services,Off-street Parking,Supplies and Services,Miscellaneous expenses,D88,Miscellaneous expenses,22/07/2014,187005,"1,920.90",Revenue income and expenditure,Jade Security Services Ltd,7651,1,VO,201404,CP00,P1,
B,Bromsgrove District Council,Highways and transport services,Off-street Parking,Supplies and Services,Communication and computing,D51,Printing and stationery,23/07/2014,187006,211.00,Revenue income and expenditure,Parkeon Ltd,7764,1,VO,201404,CP00,P1,
B,Bromsgrove District Council,Not BVACOP Service,Not BVACOP Sub Division,Current Assets,Stocks,300,Stock Movement,22/07/2014,187008,94.33,,Dennis Eagle Ltd,1191,1,VO,201404,XX611,P1,
B,Bromsgrove District Council,Surpluses/deficits on trading undertakings,Depot Services,Supplies and Services,"Equipment, furniture and materials",D06,Materials - purchased,16/07/2014,187009,67.57,Revenue income and expenditure,Aggregate Industries UK Ltd,1009,1,VO,201404,DS62,P1,
B,Bromsgrove District Council,Cultural and Related Services,Arts Development and Support,Supplies and Services,Grants and subscriptions,D71,Grants,22/07/2014,187013,"30,000.00",Revenue income and expenditure,Artrix,4366,1,VO,201404,AR15,P5,
B,Bromsgrove District Council,Highways and transport services,Off-street Parking,Premise Related Expenditure,"Repairs, alterations and maint. of buildings",B03,Internal repair/maint. (reg'd for gross pay't),22/07/2014,187017,290.46,Revenue income and expenditure,Thyssenkrupp Elevator UK Ltd,3658,1,VO,201404,CP01,P1,
B,Bromsgrove District Council,Highways and transport services,Off-street Parking,Premise Related Expenditure,"Repairs, alterations and maint. of buildings",B03,Internal repair/maint. (reg'd for gross pay't),29/07/2014,187018,232.66,Revenue income and expenditure,Thyssenkrupp Elevator UK Ltd,3658,1,VO,201404,CP01,P1,
B,Bromsgrove District Council,Not BVACOP Service,Not BVACOP Sub Division,Current Assets,Stocks,300,Stock Movement,22/07/2014,187019,290.00,,Watson Fuels,8732,1,VO,201404,XX611,P1,
B,Bromsgrove District Council,Surpluses/deficits on trading undertakings,Depot Services,Supplies and Services,"Equipment, furniture and materials",D03,Equipment - rental/lease,22/07/2014,187020,7.20,Revenue income and expenditure,BOC Gases Ltd,1075,1,VO,201404,DT41,P1,
B,Bromsgrove District Council,Planning and Development Services,Supplementary planning guidance,Premise Related Expenditure,Rents,B31,Room hire,24/07/2014,187023,90.00,Revenue income and expenditure,Dodford Village Hall,5907,1,VO,201404,LP01,P4,
B,Bromsgrove District Council,,,Supplies and Services,Services,D49,Miscellaneous services,22/07/2014,187024,"9,150.00",Revenue income and expenditure,Bromsgrove District Housing Trust,2969,1,VO,201404,CM23,P5,
B,Bromsgrove District Council,Central Services to the Public,Registration of Electors,Supplies and Services,Communication and computing,D51,Printing and stationery,22/07/2014,187025,95.00,Revenue income and expenditure,Stranz Square Cafe Catering,9170,3,VO,201404,EL00,P4,
B,Bromsgrove District Council,Surpluses/deficits on trading undertakings,Internal Business Units and Support Services,Supplies and Services,Services,D49,Miscellaneous services,15/07/2014,187028,335.00,Revenue income and expenditure,AA Global Language services Ltd,8114,1,VO,201404,LS05,P1,
B,Bromsgrove District Council,Surpluses/deficits on trading undertakings,Depot Services,Transport Related Expenditure,Direct Transport Costs,C01,Vehicle repairs/maint'ce,22/07/2014,187029,408.41,Revenue income and expenditure,Dennis Eagle Ltd,1191,1,VO,201404,DW11,P1,
B,Bromsgrove District Council,Surpluses/deficits on trading undertakings,Internal Business Units and Support Services,Supplies and Services,Communication and computing,D56,Computer - hardware,22/07/2014,187030,383.60,Revenue income and expenditure,Probrand Limited,9439,1,VO,201404,IT10,P1,
B,Bromsgrove District Council,Surpluses/deficits on trading undertakings,Internal Business Units and Support Services,Supplies and Services,Communication and computing,D56,Computer - hardware,22/07/2014,187030,383.60,Revenue income and expenditure,Probrand Limited,9439,1,VO,201404,IT12,P1,
B,Bromsgrove District Council,Surpluses/deficits on trading undertakings,Internal Business Units and Support Services,Supplies and Services,Communication and computing,D56,Computer - hardware,22/07/2014,187031,"1,086.00",Revenue income and expenditure,Probrand Limited,9439,1,VO,201404,IT10,P1,
B,Bromsgrove District Council,Surpluses/deficits on trading undertakings,Depot Services,Supplies and Services,"Equipment, furniture and materials",D06,Materials - purchased,22/07/2014,187035,210.00,Revenue income and expenditure,Truckstop Hawkes (Egglaroy Ltd T/A),6329,1,VO,201404,DW11,P1,
B,Bromsgrove District Council,Surpluses/deficits on trading undertakings,Depot Services,Transport Related Expenditure,Direct Transport Costs,C01,Vehicle repairs/maint'ce,22/07/2014,187035,438.86,Revenue income and expenditure,Truckstop Hawkes (Egglaroy Ltd T/A),6329,1,VO,201404,DW11,P1,
B,Bromsgrove District Council,Highways and transport services,Off-street Parking,Supplies and Services,"Equipment, furniture and materials",D06,Materials - purchased,16/07/2014,187036,114.17,Revenue income and expenditure,Aggregate Industries UK Ltd,1009,1,VO,201404,CP00,P1,
B,Bromsgrove District Council,,,Supplies and Services,Services,D42,Seminar and course fees,17/07/2014,187037,595.00,Revenue income and expenditure,Worcestershire Health & Care NHS Trust,10714,1,VO,201404,CM20,P4,
B,Bromsgrove District Council,Surpluses/deficits on trading undertakings,Depot Services,Transport Related Expenditure,Direct Transport Costs,C01,Vehicle repairs/maint'ce,22/07/2014,187038,48.56,Revenue income and expenditure,Dennis Eagle Ltd,1191,1,VO,201404,DW11,P1,
B,Bromsgrove District Council,Surpluses/deficits on trading undertakings,Depot Services,Transport Related Expenditure,Direct Transport Costs,C01,Vehicle repairs/maint'ce,22/07/2014,187042,40.00,Revenue income and expenditure,Imperial Commercials Ltd ( Derby),10589,1,VO,201404,DS61,P1,
B,Bromsgrove District Council,Surpluses/deficits on trading undertakings,Depot Services,Transport Related Expenditure,Direct Transport Costs,C01,Vehicle repairs/maint'ce,22/07/2014,187042,93.00,Revenue income and expenditure,Imperial Commercials Ltd ( Derby),10589,1,VO,201404,DS61,P4,
B,Bromsgrove District Council,Surpluses/deficits on trading undertakings,Depot Services,Supplies and Services,"Equipment, furniture and materials",D03,Equipment - rental/lease,22/07/2014,187043,76.99,Revenue income and expenditure,Air Liquide Limited,1407,1,VO,201404,DT41,P1,
B,Bromsgrove District Council,Surpluses/deficits on trading undertakings,Depot Services,Supplies and Services,"Equipment, furniture and materials",D02,Equipment - maintenance,22/07/2014,187045,28.00,Revenue income and expenditure,Mercian Lifting Gear Limited,1435,1,VO,201404,DT41,P1,
B,Bromsgrove District Council,Surpluses/deficits on trading undertakings,Depot Services,Transport Related Expenditure,Direct Transport Costs,C01,Vehicle repairs/maint'ce,22/07/2014,187046,38.90,Revenue income and expenditure,ATE (UK) Ltd,10072,1,VO,201404,DW32,P1,
B,Bromsgrove District Council,Not BVACOP Service,Not BVACOP Sub Division,Current Assets,Stocks,300,Stock Movement,22/07/2014,187046,162.45,,ATE (UK) Ltd,10072,1,VO,201404,XX611,P1,
B,Bromsgrove District Council,Surpluses/deficits on trading undertakings,Depot Services,Transport Related Expenditure,Direct Transport Costs,C01,Vehicle repairs/maint'ce,22/07/2014,187047,112.60,Revenue income and expenditure,ATE (UK) Ltd,10072,1,VO,201404,DW21,P1,
B,Bromsgrove District Council,Not BVACOP Service,Not BVACOP Sub Division,Current Assets,Stocks,300,Stock Movement,22/07/2014,187048,139.88,,Arco Ltd,1027,1,VO,201404,XX611,P1,
B,Bromsgrove District Council,Surpluses/deficits on trading undertakings,Internal Business Units and Support Services,Supplies and Services,"Equipment, furniture and materials",D01,Equipment - purchase,22/07/2014,187049,123.00,Revenue income and expenditure,Teccon Limited,4458,1,VO,201404,ES20,P1,
B,Bromsgrove District Council,Surpluses/deficits on trading undertakings,Internal Business Units and Support Services,Supplies and Services,Communication and computing,D51,Printing and stationery,22/07/2014,187050,427.50,Revenue income and expenditure,Kaiser+Kraft Ltd,2604,1,VO,201404,ES20,P1,
B,Bromsgrove District Council,,,Supplies and Services,Catering,D24,Civic hospitality,22/07/2014,187051,22.00,Revenue income and expenditure,Complete Caterers Limited,7911,1,VO,201404,CM11,P4,
B,Bromsgrove District Council,Not BVACOP Service,Not BVACOP Sub Division,Supplies and Services,Communication and computing,D53,Postage/packaging,22/07/2014,187052,12.00,,Selectquip,7235,1,VO,201404,XX611,P1,
B,Bromsgrove District Council,Not BVACOP Service,Not BVACOP Sub Division,Current Assets,Stocks,300,Stock Movement,22/07/2014,187052,346.44,,Selectquip,7235,1,VO,201404,XX611,P1,
B,Bromsgrove District Council,General Fund Housing Services,Travellers Sites,Premise Related Expenditure,"Repairs, alterations and maint. of buildings",B04,Repair/maint'ce (CIS tax deductible),23/07/2014,187053,140.00,Revenue income and expenditure,WD Ornamental Ironwork,10033,2,VO,201404,HG02,P1,
B,Bromsgrove District Council,General Fund Housing Services,Travellers Sites,Supplies and Services,Services,D48,Contractors' fees/charges/SLA's,23/07/2014,187053,0.00,Revenue income and expenditure,WD Ornamental Ironwork,10033,2,VO,201404,HG02,P1,
B,Bromsgrove District Council,Environmental Services,Internal Drainage Levy Work,Premise Related Expenditure,Water Services,B52,Sewers/watercourses maint'ce,23/07/2014,187054,"1,473.00",Revenue income and expenditure,SOS Group Ltd,10727,1,VO,201404,LD02,P1,
B,Bromsgrove District Council,Not BVACOP Service,Not BVACOP Sub Division,Current Assets,Stocks,300,Stock Movement,23/07/2014,187055,408.60,,Arco Ltd,1027,1,VO,201404,XX611,P1,
B,Bromsgrove District Council,Not BVACOP Service,Not BVACOP Sub Division,Current Assets,Stocks,300,Stock Movement,23/07/2014,187056,552.68,,Imperial Commercials Ltd. (Bristol),1403,1,VO,201404,XX611,P1,
B,Bromsgrove District Council,Surpluses/deficits on trading undertakings,Internal Business Units and Support Services,Supplies and Services,"Equipment, furniture and materials",D03,Equipment - rental/lease,23/07/2014,187057,375.00,Revenue income and expenditure,R J SOUND SERVICES,10751,1,VO,201404,ES20,P4,
B,Bromsgrove District Council,Surpluses/deficits on trading undertakings,Internal Business Units and Support Services,Transport Related Expenditure,Contract Hire and operating leases,C32,Courier and transport services,23/07/2014,187058,130.00,Revenue income and expenditure,Bromsgrove Bus & Coach Company,5238,1,VO,201404,LS05,P4,
B,Bromsgrove District Council,Surpluses/deficits on trading undertakings,Depot Services,Transport Related Expenditure,Contract Hire and operating leases,C31,Contract hire of vehicles,24/07/2014,187060,165.00,Revenue income and expenditure,Gulliver's Truck Hire Ltd,10600,1,VO,201404,DW21,P1,
B,Bromsgrove District Council,Surpluses/deficits on trading undertakings,Depot Services,Transport Related Expenditure,Contract Hire and operating leases,C31,Contract hire of vehicles,24/07/2014,187061,850.00,Revenue income and expenditure,Gulliver's Truck Hire Ltd,10600,1,VO,201404,DW11,P1,
B,Bromsgrove District Council,Surpluses/deficits on trading undertakings,Depot Services,Transport Related Expenditure,Contract Hire and operating leases,C31,Contract hire of vehicles,24/07/2014,187062,275.00,Revenue income and expenditure,Gulliver's Truck Hire Ltd,10600,1,VO,201404,DW18,P1,
B,Bromsgrove District Council,General Fund Housing Services,,Supplies and Services,Grants and subscriptions,D71,Grants,15/07/2014,187063,"3,750.00",Revenue income and expenditure,Bromsgrove District Housing Trust,2969,1,VO,201404,HG37,P1,
B,Bromsgrove District Council,General Fund Housing Services,Other temporary Accommodation,Supplies and Services,Services,D48,Contractors' fees/charges/SLA's,15/07/2014,187064,"3,562.94",Revenue income and expenditure,Bromsgrove District Housing Trust,2969,1,VO,201404,HG23,P1,
B,Bromsgrove District Council,General Fund Housing Services,Homelessness Administration,Third Party Payments,Private Contractors,E71,BDHT - management fee,15/07/2014,187065,"17,817.87",Revenue income and expenditure,Bromsgrove District Housing Trust,2969,1,VO,201404,HG08,P1,
B,Bromsgrove District Council,General Fund Housing Services,Housing Strategy,Third Party Payments,Private Contractors,E71,BDHT - management fee,15/07/2014,187066,"4,057.47",Revenue income and expenditure,Bromsgrove District Housing Trust,2969,1,VO,201404,HG20,P1,
B,Bromsgrove District Council,General Fund Housing Services,,Supplies and Services,Grants and subscriptions,D71,Grants,15/07/2014,187067,"6,250.00",Revenue income and expenditure,NORTH WORCS BASEMENT PROJECTS LTD,10681,3,VO,201404,HG37,P5,
B,Bromsgrove District Council,Surpluses/deficits on trading undertakings,Depot Services,Supplies and Services,"Clothes, uniform and laundry",D31,Clothing and uniforms,15/07/2014,187068,108.00,Revenue income and expenditure,Focal Image,1252,1,VO,201404,DS62,P1,
B,Bromsgrove District Council,Planning and Development Services,Advice,Supplies and Services,"Equipment, furniture and materials",D01,Equipment - purchase,15/07/2014,187069,362.00,Revenue income and expenditure,Probrand Limited,9439,1,VO,201404,DC00,P1,
B,Bromsgrove District Council,Surpluses/deficits on trading undertakings,Depot Services,Supplies and Services,Communication and computing,D53,Postage/packaging,15/07/2014,187072,"2,000.00",Revenue income and expenditure,Neopost Ltd,1462,1,VO,201404,CD20,P4,
B,Bromsgrove District Council,Surpluses/deficits on trading undertakings,Depot Services,Supplies and Services,Communication and computing,D53,Postage/packaging,15/07/2014,187072,15.00,Revenue income and expenditure,Neopost Ltd,1462,1,VO,201404,CD20,P1,
B,Bromsgrove District Council,Not BVACOP Service,Not BVACOP Sub Division,Current Assets,Stocks,300,Stock Movement,23/07/2014,187075,370.20,,Arco Ltd,1027,1,VO,201404,XX611,P1,
B,Bromsgrove District Council,Surpluses/deficits on trading undertakings,Depot Services,Supplies and Services,"Equipment, furniture and materials",D06,Materials - purchased,23/07/2014,187076,30.00,Revenue income and expenditure,Broxap Limited,3119,1,VO,201404,DW21,P1,
B,Bromsgrove District Council,Surpluses/deficits on trading undertakings,Internal Business Units and Support Services,Supplies and Services,Communication and computing,D57,Computer - software,23/07/2014,187077,"10,962.56",Revenue income and expenditure,Insight Direct (UK) Ltd,1350,1,VO,201404,IT12,P1,
B,Bromsgrove District Council,Central Services to the Public,Registration of Electors,Supplies and Services,Communication and computing,D51,Printing and stationery,23/07/2014,187078,111.37,Revenue income and expenditure,Office Depot UK Ltd,6249,1,VO,201404,EL00,P1,
B,Bromsgrove District Council,Surpluses/deficits on trading undertakings,Depot Services,Transport Related Expenditure,Direct Transport Costs,C01,Vehicle repairs/maint'ce,23/07/2014,187079,14.12,Revenue income and expenditure,Imperial Commercials Ltd. (Bristol),1403,1,VO,201404,DW11,P1,
B,Bromsgrove District Council,Surpluses/deficits on trading undertakings,Depot Services,Transport Related Expenditure,Direct Transport Costs,C01,Vehicle repairs/maint'ce,23/07/2014,187080,90.08,Revenue income and expenditure,Imperial Commercials Ltd. (Bristol),1403,1,VO,201404,DS62,P1,
B,Bromsgrove District Council,Not BVACOP Service,Not BVACOP Sub Division,Current Assets,Stocks,300,Stock Movement,23/07/2014,187083,149.26,,Dennis Eagle Ltd,1191,1,VO,201404,XX611,P1,
B,Bromsgrove District Council,Surpluses/deficits on trading undertakings,Internal Business Units and Support Services,Supplies and Services,Communication and computing,D56,Computer - hardware,23/07/2014,187085,899.94,Revenue income and expenditure,L8 Solutions Ltd,8749,1,VO,201404,IT10,P1,
B,Bromsgrove District Council,Not BVACOP Service,Not BVACOP Sub Division,Current Assets,Stocks,300,Stock Movement,24/07/2014,187086,95.90,,Focal Image,1252,1,VO,201404,XX611,P1,
B,Bromsgrove District Council,Surpluses/deficits on trading undertakings,Depot Services,Supplies and Services,"Equipment, furniture and materials",D06,Materials - purchased,24/07/2014,187087,132.00,Revenue income and expenditure,Focal Image,1252,1,VO,201404,DW11,P1,
B,Bromsgrove District Council,Not BVACOP Service,Not BVACOP Sub Division,Current Assets,Stocks,300,Stock Movement,24/07/2014,187087,23.90,,Focal Image,1252,1,VO,201404,XX611,P1,
B,Bromsgrove District Council,Not BVACOP Service,Not BVACOP Sub Division,Current Assets,Stocks,300,Stock Movement,24/07/2014,187088,25.70,,Focal Image,1252,1,VO,201404,XX611,P1,
B,Bromsgrove District Council,Not BVACOP Service,Not BVACOP Sub Division,Current Assets,Stocks,300,Stock Movement,15/07/2014,187090,14.40,,Bromsgrove Motor Factors,1091,1,VO,201404,XX611,P1,
B,Bromsgrove District Council,Not BVACOP Service,Not BVACOP Sub Division,Current Assets,Stocks,300,Stock Movement,15/07/2014,187091,5.75,,Bromsgrove Motor Factors,1091,1,VO,201404,XX611,P1,
B,Bromsgrove District Council,Not BVACOP Service,Not BVACOP Sub Division,Current Assets,Stocks,300,Stock Movement,15/07/2014,187092,28.75,,Bromsgrove Motor Factors,1091,1,VO,201404,XX611,P1,
B,Bromsgrove District Council,Not BVACOP Service,Not BVACOP Sub Division,Current Assets,Stocks,300,Stock Movement,16/07/2014,187093,180.00,,Bromsgrove Motor Factors,1091,1,VO,201404,XX611,P1,
B,Bromsgrove District Council,,,Transport Related Expenditure,Direct Transport Costs,C01,Vehicle repairs/maint'ce,16/07/2014,187094,21.22,Revenue income and expenditure,Bromsgrove Motor Factors,1091,1,VO,201404,CM21,P1,
B,Bromsgrove District Council,Surpluses/deficits on trading undertakings,Depot Services,Transport Related Expenditure,Contract Hire and operating leases,C31,Contract hire of vehicles,17/07/2014,187096,88.50,Revenue income and expenditure,Gulliver's Truck Hire Ltd,10600,1,VO,201404,DW11,P1,
B,Bromsgrove District Council,Not BVACOP Service,Not BVACOP Sub Division,Current Assets,Stocks,300,Stock Movement,28/07/2014,187098,"3,331.94",,Chris Tallis Farm Machinery Ltd,10074,1,VO,201404,XX611,P1,
B,Bromsgrove District Council,Surpluses/deficits on trading undertakings,Depot Services,Transport Related Expenditure,Direct Transport Costs,C01,Vehicle repairs/maint'ce,28/07/2014,187098,"1,190.53",Revenue income and expenditure,Chris Tallis Farm Machinery Ltd,10074,1,VO,201404,DW32,P1,
B,Bromsgrove District Council,Environmental Services,Cemeteries,Transport Related Expenditure,Direct Transport Costs,C01,Vehicle repairs/maint'ce,28/07/2014,187098,31.92,Revenue income and expenditure,Chris Tallis Farm Machinery Ltd,10074,1,VO,201404,CE01,P1,
B,Bromsgrove District Council,Planning and Development Services,Advice,Supplies and Services,Communication and computing,D54,Advertising (general),28/07/2014,187100,190.88,Revenue income and expenditure,TMP (UK) Ltd,1646,1,VO,201404,DC00,P1,
B,Bromsgrove District Council,Surpluses/deficits on trading undertakings,Depot Services,Transport Related Expenditure,Direct Transport Costs,C01,Vehicle repairs/maint'ce,24/07/2014,187108,387.00,Revenue income and expenditure,Zoeller Waste System Ltd,6172,1,VO,201404,DW11,P1,
B,Bromsgrove District Council,Environmental Services,Public Toilets,Supplies and Services,"Equipment, furniture and materials",D02,Equipment - maintenance,29/07/2014,187109,70.00,Revenue income and expenditure,Prism Medical UK,10718,1,VO,201404,PC03,P1,
B,Bromsgrove District Council,Not BVACOP Service,Not BVACOP Sub Division,Current Assets,Stocks,300,Stock Movement,24/07/2014,187110,"25,728.00",,Harvest Energy Ltd,9164,1,VO,201404,XX611,P1,
B,Bromsgrove District Council,Not BVACOP Service,Not BVACOP Sub Division,Capital Expenditure,Operational Land and Buildings,X04,Other contract payments,24/07/2014,187111,"31,067.90",Capital income and expenditure,Wicksteed Leisure Ltd,1707,1,VO,201404,CAPC,P1,
B,Bromsgrove District Council,Environmental Services,Public Toilets,Supplies and Services,"Equipment, furniture and materials",D02,Equipment - maintenance,29/07/2014,187112,120.00,Revenue income and expenditure,Prism Medical UK,10718,1,VO,201404,PC03,P1,
B,Bromsgrove District Council,Not BVACOP Service,Not BVACOP Sub Division,Current Assets,Stocks,300,Stock Movement,28/07/2014,187113,211.76,,Zoeller Waste System Ltd,6172,1,VO,201404,XX611,P1,
B,Bromsgrove District Council,Surpluses/deficits on trading undertakings,Internal Business Units and Support Services,Premise Related Expenditure,Cleaning and domestic supplies,B83,Confidential waste disposal,28/07/2014,187116,105.00,Revenue income and expenditure,P.W. CommercialLtd T/A Printwaste,9614,1,VO,201404,ES20,P1,
B,Bromsgrove District Council,,,Supplies and Services,Services,D49,Miscellaneous services,28/07/2014,187121,"4,700.00",Revenue income and expenditure,Bromsgrove District Housing Trust,2969,1,VO,201404,CM23,P4,
B,Bromsgrove District Council,Surpluses/deficits on trading undertakings,Depot Services,Supplies and Services,"Equipment, furniture and materials",D06,Materials - purchased,28/07/2014,187129,112.20,Revenue income and expenditure,Pressure Coolers Trading as Maestro International,9070,1,VO,201404,DP02,P1,
B,Bromsgrove District Council,Not BVACOP Service,Not BVACOP Sub Division,Current Assets,Stocks,300,Stock Movement,31/07/2014,187131,125.68,,Arco Ltd,1027,1,VO,201404,XX611,P1,
B,Bromsgrove District Council,Surpluses/deficits on trading undertakings,Depot Services,Supplies and Services,"Equipment, furniture and materials",D01,Equipment - purchase,31/07/2014,187131,25.44,Revenue income and expenditure,Arco Ltd,1027,1,VO,201404,DS62,P1,
B,Bromsgrove District Council,Not BVACOP Service,Not BVACOP Sub Division,Current Assets,Stocks,300,Stock Movement,15/07/2014,187132,243.00,,Jewson Ltd,2109,1,VO,201404,XX611,P1,
B,Bromsgrove District Council,Not BVACOP Service,Not BVACOP Sub Division,Current Assets,Stocks,300,Stock Movement,15/07/2014,187133,243.00,,Jewson Ltd,2109,1,VO,201404,XX611,P1,
B,Bromsgrove District Council,,,Supplies and Services,"Equipment, furniture and materials",D03,Equipment - rental/lease,15/07/2014,187134,26.70,Revenue income and expenditure,Angel Springs Ltd,8009,1,VO,201404,CC01,P1,
B,Bromsgrove District Council,Not BVACOP Service,Not BVACOP Sub Division,Current Assets,Stocks,300,Stock Movement,15/07/2014,187135,38.66,,Arco Ltd,1027,1,VO,201404,XX611,P1,
B,Bromsgrove District Council,Surpluses/deficits on trading undertakings,Depot Services,Supplies and Services,"Equipment, furniture and materials",D01,Equipment - purchase,15/07/2014,187135,45.10,Revenue income and expenditure,Arco Ltd,1027,1,VO,201404,DS62,P1,
B,Bromsgrove District Council,Not BVACOP Service,Not BVACOP Sub Division,Current Assets,Stocks,300,Stock Movement,15/07/2014,187136,50.80,,Arco Ltd,1027,1,VO,201404,XX611,P1,
B,Bromsgrove District Council,Surpluses/deficits on trading undertakings,Depot Services,Premise Related Expenditure,Cleaning and domestic supplies,B81,Cleaning and domestic supplies,28/07/2014,187137,305.46,Revenue income and expenditure,Rentokil Initial UK Ltd,1540,1,VO,201404,DP02,P1,
B,Bromsgrove District Council,Surpluses/deficits on trading undertakings,Depot Services,Supplies and Services,Miscellaneous expenses,D88,Miscellaneous expenses,15/07/2014,187139,114.80,Revenue income and expenditure,Mercia Waste Management Ltd,1433,1,VO,201404,DW32,P1,
B,Bromsgrove District Council,,,Employees,Direct Employee Expenses,A10,Agency workers,21/07/2014,187141,857.50,Revenue income and expenditure,Morgan Hunt UK Ltd,9519,1,VN,201404,RB10,P1,
B,Bromsgrove District Council,Surpluses/deficits on trading undertakings,Internal Business Units and Support Services,Supplies and Services,Services,D49,Miscellaneous services,16/07/2014,187145,"4,407.78",Revenue income and expenditure,Vodafone Ltd  (Cable & Wireless),1103,1,VN,201404,IT12,P1,
B,Bromsgrove District Council,Surpluses/deficits on trading undertakings,Internal Business Units and Support Services,Supplies and Services,Services,D49,Miscellaneous services,16/07/2014,187146,"4,474.14",Revenue income and expenditure,Vodafone Ltd  (Cable & Wireless),1103,1,VN,201404,IT10,P1,
B,Bromsgrove District Council,Surpluses/deficits on trading undertakings,Internal Business Units and Support Services,Supplies and Services,Communication and computing,D52,Books and publications,15/07/2014,187147,863.00,Revenue income and expenditure,LexisNexis Butterworths,1989,1,VO,201404,RS00,P4,
B,Bromsgrove District Council,Surpluses/deficits on trading undertakings,Depot Services,Supplies and Services,"Equipment, furniture and materials",D01,Equipment - purchase,17/07/2014,187148,21.42,Revenue income and expenditure,Spaldings (UK) Ltd,1600,1,VN,201404,DW21,P1,
B,Bromsgrove District Council,Not BVACOP Service,Not BVACOP Sub Division,Current Assets,Stocks,300,Stock Movement,28/07/2014,187149,"6,815.63",,WasteParts UK Ltd,6508,1,VO,201404,XX611,P1,
B,Bromsgrove District Council,Surpluses/deficits on trading undertakings,Depot Services,Supplies and Services,"Equipment, furniture and materials",D03,Equipment - rental/lease,28/07/2014,187150,15.00,Revenue income and expenditure,BOC Gases Ltd,1075,1,VO,201404,DT41,P4,
B,Bromsgrove District Council,Environmental Services,Public Toilets,Supplies and Services,"Equipment, furniture and materials",D06,Materials - purchased,28/07/2014,187151,17.93,Revenue income and expenditure,Broad Street D.I.Y,1089,1,VO,201404,PC03,P1,
B,Bromsgrove District Council,Surpluses/deficits on trading undertakings,Depot Services,Supplies and Services,"Equipment, furniture and materials",D01,Equipment - purchase,28/07/2014,187151,30.00,Revenue income and expenditure,Broad Street D.I.Y,1089,1,VO,201404,DS62,P1,
B,Bromsgrove District Council,Not BVACOP Service,Not BVACOP Sub Division,Capital Expenditure,Operational Land and Buildings,X04,Other contract payments,16/07/2014,187152,700.00,Capital income and expenditure,SWIFT ECOLOGY,10749,1,VO,201404,CAPC,P1,
B,Bromsgrove District Council,Surpluses/deficits on trading undertakings,Internal Business Units and Support Services,Supplies and Services,Communication and computing,D56,Computer - hardware,16/07/2014,187153,"2,410.00",Revenue income and expenditure,Computer Aided Development Corporation,10689,1,VO,201404,IT10,P1,
B,Bromsgrove District Council,Surpluses/deficits on trading undertakings,Internal Business Units and Support Services,Supplies and Services,Communication and computing,D56,Computer - hardware,16/07/2014,187153,"2,410.00",Revenue income and expenditure,Computer Aided Development Corporation,10689,1,VO,201404,IT12,P1,
B,Bromsgrove District Council,Not BVACOP Service,Not BVACOP Sub Division,Current Assets,Stocks,300,Stock Movement,16/07/2014,187154,201.52,,Race Industrial,7084,1,VO,201404,XX611,P1,
B,Bromsgrove District Council,Planning and Development Services,Sustainable development strategies,Supplies and Services,Services,D47,Consultants' fees,16/07/2014,187155,"7,511.60",Revenue income and expenditure,Amion Consulting Ltd,10761,1,VO,201404,LP06,P1,
B,Bromsgrove District Council,Not BVACOP Service,Not BVACOP Sub Division,Capital Expenditure,"Plant, vehicles and equipment",X22,Computer equipment etc.,16/07/2014,187156,"2,500.00",Capital income and expenditure,Cutter Project,9702,1,VO,201404,CAPE,P1,
B,Bromsgrove District Council,Surpluses/deficits on trading undertakings,Depot Services,Supplies and Services,"Equipment, furniture and materials",D06,Materials - purchased,16/07/2014,187158,76.65,Revenue income and expenditure,Earlswood Nurseries Ltd,10465,1,VO,201404,DW32,P1,
B,Bromsgrove District Council,Surpluses/deficits on trading undertakings,Depot Services,Supplies and Services,"Equipment, furniture and materials",D06,Materials - purchased,16/07/2014,187159,76.65,Revenue income and expenditure,Earlswood Nurseries Ltd,10465,1,VO,201404,DW32,P1,
B,Bromsgrove District Council,Surpluses/deficits on trading undertakings,Depot Services,Supplies and Services,"Equipment, furniture and materials",D06,Materials - purchased,16/07/2014,187160,76.65,Revenue income and expenditure,Earlswood Nurseries Ltd,10465,1,VO,201404,DW32,P1,
B,Bromsgrove District Council,Surpluses/deficits on trading undertakings,Depot Services,Supplies and Services,"Equipment, furniture and materials",D06,Materials - purchased,16/07/2014,187161,162.63,Revenue income and expenditure,Earlswood Nurseries Ltd,10465,1,VO,201404,DW32,P1,
B,Bromsgrove District Council,Surpluses/deficits on trading undertakings,Depot Services,Supplies and Services,"Equipment, furniture and materials",D06,Materials - purchased,16/07/2014,187162,38.33,Revenue income and expenditure,Earlswood Nurseries Ltd,10465,1,VO,201404,DW32,P1,
B,Bromsgrove District Council,Surpluses/deficits on trading undertakings,Depot Services,Employees,Direct Employee Expenses,A10,Agency workers,22/07/2014,187163,"1,461.95",Revenue income and expenditure,MatrixSCM Ltd,9043,1,VN,201404,DW21,P1,
B,Bromsgrove District Council,Planning and Development Services,Advice,Employees,Direct Employee Expenses,A10,Agency workers,22/07/2014,187163,771.92,Revenue income and expenditure,MatrixSCM Ltd,9043,1,VN,201404,DC00,P1,
B,Bromsgrove District Council,Surpluses/deficits on trading undertakings,Depot Services,Employees,Direct Employee Expenses,A10,Agency workers,22/07/2014,187163,701.50,Revenue income and expenditure,MatrixSCM Ltd,9043,1,VN,201404,DW11,P1,
B,Bromsgrove District Council,Surpluses/deficits on trading undertakings,Depot Services,Supplies and Services,"Equipment, furniture and materials",D06,Materials - purchased,16/07/2014,187164,-20.83,Revenue income and expenditure,Earlswood Nurseries Ltd,10465,1,CN,201404,DW32,P1,
B,Bromsgrove District Council,Surpluses/deficits on trading undertakings,Depot Services,Premise Related Expenditure,Fixtures and Fittings,B63,Internal fixtures/fittings - maint'ce,17/07/2014,187165,195.00,Revenue income and expenditure,Daemon Fire & Security Ltd,1181,1,VN,201404,DP02,P1,
B,Bromsgrove District Council,Planning and Development Services,Advice,Employees,Direct Employee Expenses,A10,Agency workers,17/07/2014,187166,"1,474.80",Revenue income and expenditure,Jane Fray,10388,1,VO,201404,DC00,P4,
B,Bromsgrove District Council,Surpluses/deficits on trading undertakings,Depot Services,Supplies and Services,"Equipment, furniture and materials",D06,Materials - purchased,17/07/2014,187167,15.00,Revenue income and expenditure,Rapid Metals Ltd t/a Metal Supermarket,6878,1,VO,201404,DW11,P1,
B,Bromsgrove District Council,Surpluses/deficits on trading undertakings,Depot Services,Transport Related Expenditure,Direct Transport Costs,C01,Vehicle repairs/maint'ce,17/07/2014,187168,86.10,Revenue income and expenditure,Rapid Metals Ltd t/a Metal Supermarket,6878,1,VO,201404,DW11,P1,
B,Bromsgrove District Council,Surpluses/deficits on trading undertakings,Depot Services,Transport Related Expenditure,Direct Transport Costs,C01,Vehicle repairs/maint'ce,17/07/2014,187169,95.40,Revenue income and expenditure,Rapid Metals Ltd t/a Metal Supermarket,6878,1,VO,201404,DW11,P1,
B,Bromsgrove District Council,Environmental Services,Public Toilets,Transport Related Expenditure,Direct Transport Costs,C01,Vehicle repairs/maint'ce,17/07/2014,187170,19.39,Revenue income and expenditure,All Saints,5335,1,VO,201404,PC00,P1,
B,Bromsgrove District Council,Central Services to the Public,Conducting Elections,Supplies and Services,Communication and computing,D53,Postage/packaging,17/07/2014,187171,64.00,Revenue income and expenditure,Print.uk.com,2722,1,VO,201404,EL10,P1,
B,Bromsgrove District Council,Central Services to the Public,Conducting Elections,Supplies and Services,Communication and computing,D51,Printing and stationery,17/07/2014,187171,"1,381.17",Revenue income and expenditure,Print.uk.com,2722,1,VO,201404,EL10,P1,
B,Bromsgrove District Council,,,Employees,Direct Employee Expenses,A10,Agency workers,21/07/2014,187172,759.50,Revenue income and expenditure,Morgan Hunt UK Ltd,9519,1,VN,201404,RB10,P1,
B,Bromsgrove District Council,,,Employees,Direct Employee Expenses,A10,Agency workers,21/07/2014,187173,661.50,Revenue income and expenditure,Morgan Hunt UK Ltd,9519,1,VN,201404,RB10,P1,
B,Bromsgrove District Council,,,Employees,Direct Employee Expenses,A10,Agency workers,21/07/2014,187174,906.50,Revenue income and expenditure,Morgan Hunt UK Ltd,9519,1,VN,201404,RB10,P1,
B,Bromsgrove District Council,,,Employees,Direct Employee Expenses,A10,Agency workers,21/07/2014,187175,"1,029.00",Revenue income and expenditure,Morgan Hunt UK Ltd,9519,1,VN,201404,RB10,P1,
B,Bromsgrove District Council,,,Employees,Direct Employee Expenses,A10,Agency workers,21/07/2014,187176,"1,029.00",Revenue income and expenditure,Morgan Hunt UK Ltd,9519,1,VN,201404,RB10,P1,
B,Bromsgrove District Council,Not BVACOP Service,Not BVACOP Sub Division,Current Assets,Stocks,300,Stock Movement,17/07/2014,187179,282.75,,PCS Jangro,7294,1,VO,201404,XX611,P1,
B,Bromsgrove District Council,Surpluses/deficits on trading undertakings,Depot Services,Transport Related Expenditure,Direct Transport Costs,C01,Vehicle repairs/maint'ce,24/07/2014,187180,136.00,Revenue income and expenditure,Imperial Commercials Ltd ( Derby),10589,1,VP,201404,DW11,P5,
B,Bromsgrove District Council,Surpluses/deficits on trading undertakings,Depot Services,Transport Related Expenditure,Direct Transport Costs,C01,Vehicle repairs/maint'ce,24/07/2014,187180,116.50,Revenue income and expenditure,Imperial Commercials Ltd ( Derby),10589,1,VP,201404,DW11,P1,
B,Bromsgrove District Council,Surpluses/deficits on trading undertakings,Internal Business Units and Support Services,Supplies and Services,Services,D47,Consultants' fees,29/07/2014,187181,"1,726.99",Revenue income and expenditure,Local Government Association,4059,5,VO,201404,LS12,P1,
B,Bromsgrove District Council,,,Premise Related Expenditure,Cleaning and domestic supplies,B80,Contract cleaning,29/07/2014,187182,382.42,Revenue income and expenditure,We Clean Ltd,2966,1,VO,201404,CC01,P1,
B,Bromsgrove District Council,Surpluses/deficits on trading undertakings,Internal Business Units and Support Services,Supplies and Services,Communication and computing,D77,Internet,25/07/2014,187183,13.50,Revenue income and expenditure,British Telecommunications plc,1098,1,VN,201404,IT12,P5,
B,Bromsgrove District Council,Surpluses/deficits on trading undertakings,Internal Business Units and Support Services,Supplies and Services,Communication and computing,D77,Internet,25/07/2014,187183,131.10,Revenue income and expenditure,British Telecommunications plc,1098,1,VN,201404,IT12,P1,
B,Bromsgrove District Council,Cultural and Related Services,Allotments,Premise Related Expenditure,Water Services,B51,Water charges,23/07/2014,187184,14.71,Revenue income and expenditure,Severn Trent Water Ltd,2416,1,VN,201404,AL01,P5,
B,Bromsgrove District Council,Central Services to the Public,Registration of Electors,Supplies and Services,Communication and computing,D53,Postage/packaging,25/07/2014,187185,5.75,Revenue income and expenditure,Royal Mail Group Plc,1558,1,VN,201404,EL00,P4,
B,Bromsgrove District Council,Central Services to the Public,Registration of Electors,Supplies and Services,Communication and computing,D53,Postage/packaging,25/07/2014,187185,13.60,Revenue income and expenditure,Royal Mail Group Plc,1558,1,VN,201404,EL00,P1,
B,Bromsgrove District Council,Surpluses/deficits on trading undertakings,Depot Services,Employees,Direct Employee Expenses,A10,Agency workers,28/07/2014,187186,"11,558.85",Revenue income and expenditure,MatrixSCM Ltd,9043,1,VN,201404,DW11,P1,
B,Bromsgrove District Council,Surpluses/deficits on trading undertakings,Depot Services,Employees,Direct Employee Expenses,A10,Agency workers,28/07/2014,187186,"3,340.67",Revenue income and expenditure,MatrixSCM Ltd,9043,1,VN,201404,DW21,P1,
B,Bromsgrove District Council,Surpluses/deficits on trading undertakings,Depot Services,Supplies and Services,Communication and computing,D53,Postage/packaging,23/07/2014,187188,0.42,Revenue income and expenditure,Royal Mail Group Plc,1558,1,VN,201404,DP02,P1,
B,Bromsgrove District Council,Surpluses/deficits on trading undertakings,Depot Services,Supplies and Services,"Equipment, furniture and materials",D06,Materials - purchased,29/07/2014,187191,10.66,Revenue income and expenditure,Wurth UK Ltd,10087,1,VO,201404,DT41,P1,
B,Bromsgrove District Council,Not BVACOP Service,Not BVACOP Sub Division,Current Assets,Stocks,300,Stock Movement,30/07/2014,187192,99.97,,Wurth UK Ltd,10087,1,VO,201404,XX611,P1,
B,Bromsgrove District Council,Surpluses/deficits on trading undertakings,Depot Services,Supplies and Services,"Equipment, furniture and materials",D06,Materials - purchased,30/07/2014,187192,74.54,Revenue income and expenditure,Wurth UK Ltd,10087,1,VO,201404,DT41,P1,
B,Bromsgrove District Council,Surpluses/deficits on trading undertakings,Depot Services,Supplies and Services,"Clothes, uniform and laundry",D31,Clothing and uniforms,30/07/2014,187195,67.50,Revenue income and expenditure,Tudor Environmental,10241,1,VO,201404,DW32,P1,
B,Bromsgrove District Council,Not BVACOP Service,Not BVACOP Sub Division,Current Assets,Stocks,300,Stock Movement,30/07/2014,187195,87.12,,Tudor Environmental,10241,1,VO,201404,XX611,P1,
B,Bromsgrove District Council,Surpluses/deficits on trading undertakings,Depot Services,Supplies and Services,"Equipment, furniture and materials",D01,Equipment - purchase,30/07/2014,187195,38.96,Revenue income and expenditure,Tudor Environmental,10241,1,VO,201404,DW32,P1,
B,Bromsgrove District Council,Cultural and Related Services,Outdoor sports and recreation facilities,Supplies and Services,"Equipment, furniture and materials",D01,Equipment - purchase,30/07/2014,187195,24.92,Revenue income and expenditure,Tudor Environmental,10241,1,VO,201404,PA01,P1,
B,Bromsgrove District Council,Not BVACOP Service,Not BVACOP Sub Division,Current Assets,Stocks,300,Stock Movement,30/07/2014,187196,254.72,,Arco Ltd,1027,1,VO,201404,XX611,P1,
B,Bromsgrove District Council,Environmental Services,Public Health,Supplies and Services,"Clothes, uniform and laundry",D31,Clothing and uniforms,30/07/2014,187197,16.00,Revenue income and expenditure,Focal Image,1252,1,VO,201404,EH02,P1,
B,Bromsgrove District Council,Not BVACOP Service,Not BVACOP Sub Division,Current Assets,Stocks,300,Stock Movement,30/07/2014,187197,7.50,,Focal Image,1252,1,VO,201404,XX611,P1,
B,Bromsgrove District Council,Not BVACOP Service,Not BVACOP Sub Division,Current Assets,Stocks,300,Stock Movement,30/07/2014,187198,390.05,,Focal Image,1252,1,VO,201404,XX611,P1,
B,Bromsgrove District Council,Not BVACOP Service,Not BVACOP Sub Division,Current Assets,Stocks,300,Stock Movement,30/07/2014,187198,189.00,,Focal Image,1252,1,VO,201404,XX611,P4,
B,Bromsgrove District Council,Cultural and Related Services,Community Centres,Premise Related Expenditure,Fixtures and Fittings,B63,Internal fixtures/fittings - maint'ce,31/07/2014,187199,132.00,Revenue income and expenditure,Bradley Environmental Consultants,1082,1,VO,201404,SS01,P1,
B,Bromsgrove District Council,Surpluses/deficits on trading undertakings,Internal Business Units and Support Services,Premise Related Expenditure,"Repairs, alterations and maint. of buildings",B03,Internal repair/maint. (reg'd for gross pay't),31/07/2014,187199,388.00,Revenue income and expenditure,Bradley Environmental Consultants,1082,1,VO,201404,ES20,P1,
B,Bromsgrove District Council,Surpluses/deficits on trading undertakings,Depot Services,Premise Related Expenditure,Cleaning and domestic supplies,B81,Cleaning and domestic supplies,30/07/2014,187201,588.00,Revenue income and expenditure,AM & PM Cleaning Solutions,6284,1,VO,201404,DP02,P4,
B,Bromsgrove District Council,Surpluses/deficits on trading undertakings,Depot Services,Supplies and Services,"Clothes, uniform and laundry",D31,Clothing and uniforms,30/07/2014,187204,57.00,Revenue income and expenditure,Focal Image,1252,1,VO,201404,DT41,P1,
B,Bromsgrove District Council,Not BVACOP Service,Not BVACOP Sub Division,Current Assets,Stocks,300,Stock Movement,30/07/2014,187205,150.00,,Focal Image,1252,1,VO,201404,XX611,P1,
B,Bromsgrove District Council,Surpluses/deficits on trading undertakings,Depot Services,Transport Related Expenditure,Direct Transport Costs,C01,Vehicle repairs/maint'ce,30/07/2014,187206,53.97,Revenue income and expenditure,Dennis Eagle Ltd,1191,1,VO,201404,DW11,P1,
B,Bromsgrove District Council,Planning and Development Services,Other Building control work,Supplies and Services,Communication and computing,D51,Printing and stationery,30/07/2014,187208,69.18,Revenue income and expenditure,Stanford Marsh Ltd,1607,1,VO,201404,BC00,P1,
B,Bromsgrove District Council,Not BVACOP Service,Not BVACOP Sub Division,Current Assets,Stocks,300,Stock Movement,30/07/2014,187209,481.80,,Imperial Commercials Ltd. (Bristol),1403,1,VO,201404,XX611,P1,
B,Bromsgrove District Council,Not BVACOP Service,Not BVACOP Sub Division,Current Assets,Stocks,300,Stock Movement,30/07/2014,187210,70.20,,Arco Ltd,1027,1,VO,201404,XX611,P1,
B,Bromsgrove District Council,Surpluses/deficits on trading undertakings,Depot Services,Supplies and Services,"Equipment, furniture and materials",D01,Equipment - purchase,30/07/2014,187210,25.44,Revenue income and expenditure,Arco Ltd,1027,1,VO,201404,DW21,P1,
B,Bromsgrove District Council,Not BVACOP Service,Not BVACOP Sub Division,Current Assets,Stocks,300,Stock Movement,30/07/2014,187212,89.17,,Imperial Commercials Ltd. (Bristol),1403,1,VO,201404,XX611,P1,
B,Bromsgrove District Council,Surpluses/deficits on trading undertakings,Internal Business Units and Support Services,Premise Related Expenditure,"Repairs, alterations and maint. of buildings",B02,External repair/maint. (reg'd for gross pay't),30/07/2014,187213,957.00,Revenue income and expenditure,M D Carpentry & Building Contractors Ltd,1109,2,VO,201404,ES20,P1,
B,Bromsgrove District Council,Surpluses/deficits on trading undertakings,Internal Business Units and Support Services,Premise Related Expenditure,"Repairs, alterations and maint. of buildings",B03,Internal repair/maint. (reg'd for gross pay't),30/07/2014,187213,"2,994.00",Revenue income and expenditure,M D Carpentry & Building Contractors Ltd,1109,2,VO,201404,ES20,P1,
B,Bromsgrove District Council,General Fund Housing Services,Housing Strategy,Third Party Payments,Other Local authorities,E31,Other local authorities,30/07/2014,187214,"52,000.00",Revenue income and expenditure,Festival Housing,10040,1,VO,201404,HG20,P4,
B,Bromsgrove District Council,Surpluses/deficits on trading undertakings,Depot Services,Transport Related Expenditure,Direct Transport Costs,C01,Vehicle repairs/maint'ce,30/07/2014,187215,6.88,Revenue income and expenditure,Ron Smith & Co Ltd,1854,1,VO,201404,DW21,P1,
B,Bromsgrove District Council,Surpluses/deficits on trading undertakings,Depot Services,Supplies and Services,Communication and computing,D53,Postage/packaging,30/07/2014,187215,2.00,Revenue income and expenditure,Ron Smith & Co Ltd,1854,1,VO,201404,DW21,P1,
B,Bromsgrove District Council,Not BVACOP Service,Not BVACOP Sub Division,Current Assets,Stocks,300,Stock Movement,30/07/2014,187216,41.65,,Ron Smith & Co Ltd,1854,1,VO,201404,XX611,P1,
B,Bromsgrove District Council,Surpluses/deficits on trading undertakings,Depot Services,Supplies and Services,"Equipment, furniture and materials",D02,Equipment - maintenance,30/07/2014,187217,42.00,Revenue income and expenditure,Pressure Coolers Trading as Maestro International,9070,1,VO,201404,DP02,P1,
B,Bromsgrove District Council,Central Services to the Public,Community Centres,Premise Related Expenditure,Fixtures and Fittings,B63,Internal fixtures/fittings - maint'ce,31/07/2014,187218,32.50,Revenue income and expenditure,Fire Safe Services Ltd,10056,1,VO,201404,AH01,P1,
B,Bromsgrove District Council,Central Services to the Public,Community Centres,Premise Related Expenditure,Fixtures and Fittings,B63,Internal fixtures/fittings - maint'ce,31/07/2014,187219,55.12,Revenue income and expenditure,Fire Safe Services Ltd,10056,1,VO,201404,AH01,P1,
B,Bromsgrove District Council,Surpluses/deficits on trading undertakings,Internal Business Units and Support Services,Employees,Indirect Employee Expenses,A30,Childminding allowances,23/07/2014,187220,-2.37,Revenue income and expenditure,Wider Plan Ltd,10112,1,CN,201404,PS04,P1,
B,Bromsgrove District Council,Not BVACOP Service,Not BVACOP Sub Division,Current Assets,Stocks,300,Stock Movement,29/07/2014,187221,-29.81,,Arco Ltd,1027,1,CN,201404,XX611,P1,
B,Bromsgrove District Council,,,Supplies and Services,Miscellaneous expenses,D88,Miscellaneous expenses,30/07/2014,187223,-18.72,Revenue income and expenditure,G4S Cash Solutions UK Ltd.,9753,1,CN,201404,CC01,P1,
B,Bromsgrove District Council,,,Supplies and Services,Communication and computing,D50,Debt Collection Fees,29/07/2014,187228,4.95,Revenue income and expenditure,Bristow & Sutor,1085,1,VN,201404,RB10,P1,
B,Bromsgrove District Council,,,Supplies and Services,Communication and computing,D50,Debt Collection Fees,29/07/2014,187229,26.25,Revenue income and expenditure,Bristow & Sutor,1085,1,VN,201404,RB10,P1,
B,Bromsgrove District Council,Highways and transport services,Off-street Parking,Third Party Payments,Other Local authorities,E31,Other local authorities,29/07/2014,187230,"50,654.71",Revenue income and expenditure,Wychavon District Council,1723,5,VN,201404,CP00,P1,
B,Bromsgrove District Council,Highways and transport services,Off-street Parking,Third Party Payments,Other Local authorities,E31,Other local authorities,29/07/2014,187230,"1,390.75",Revenue income and expenditure,Wychavon District Council,1723,5,VN,201404,CP00,0,
B,Bromsgrove District Council,Surpluses/deficits on trading undertakings,Internal Business Units and Support Services,Employees,Indirect Employee Expenses,A30,Childminding allowances,29/07/2014,187231,35.88,Revenue income and expenditure,Wider Plan Ltd,10112,1,VN,201404,PS04,P1,
B,Bromsgrove District Council,Surpluses/deficits on trading undertakings,Depot Services,Supplies and Services,Miscellaneous expenses,D88,Miscellaneous expenses,30/07/2014,187233,113.12,Revenue income and expenditure,Mercia Waste Management Ltd,1433,1,VO,201404,DW32,P1,
B,Bromsgrove District Council,Surpluses/deficits on trading undertakings,Depot Services,Supplies and Services,"Equipment, furniture and materials",D06,Materials - purchased,30/07/2014,187234,3.20,Revenue income and expenditure,Tudor Environmental,10241,1,VO,201404,DW21,P1,
B,Bromsgrove District Council,Not BVACOP Service,Not BVACOP Sub Division,Current Assets,Stocks,300,Stock Movement,30/07/2014,187234,55.80,,Tudor Environmental,10241,1,VO,201404,XX611,P1,
B,Bromsgrove District Council,Surpluses/deficits on trading undertakings,Depot Services,Transport Related Expenditure,Direct Transport Costs,C01,Vehicle repairs/maint'ce,30/07/2014,187235,161.16,Revenue income and expenditure,Dennis Eagle Ltd,1191,1,VO,201404,DW11,P1,
B,Bromsgrove District Council,Surpluses/deficits on trading undertakings,Depot Services,Supplies and Services,"Equipment, furniture and materials",D01,Equipment - purchase,30/07/2014,187236,229.00,Revenue income and expenditure,RS Mechanical Services (UK) Ltd,10780,1,VO,201404,DS62,P1,
B,Bromsgrove District Council,Surpluses/deficits on trading undertakings,Internal Business Units and Support Services,Supplies and Services,Communication and computing,D56,Computer - hardware,30/07/2014,187237,736.00,Revenue income and expenditure,Probrand Limited,9439,1,VO,201404,IT10,P1,
B,Bromsgrove District Council,Not BVACOP Service,Not BVACOP Sub Division,Current Assets,Stocks,300,Stock Movement,30/07/2014,187238,392.46,,Imperial Commercials Ltd. (Bristol),1403,1,VO,201404,XX611,P1,
B,Bromsgrove District Council,Not BVACOP Service,Not BVACOP Sub Division,Current Assets,Stocks,300,Stock Movement,30/07/2014,187239,3.69,,Imperial Commercials Ltd. (Bristol),1403,1,VO,201404,XX611,P1,
B,Bromsgrove District Council,Not BVACOP Service,Not BVACOP Sub Division,Current Assets,Stocks,300,Stock Movement,30/07/2014,187240,72.00,,Imperial Commercials Ltd. (Bristol),1403,1,VO,201404,XX611,P1,
B,Bromsgrove District Council,Surpluses/deficits on trading undertakings,Depot Services,Transport Related Expenditure,Direct Transport Costs,C01,Vehicle repairs/maint'ce,30/07/2014,187241,9.80,Revenue income and expenditure,Imperial Commercials Ltd. (Bristol),1403,1,VO,201404,DW21,P1,
B,Bromsgrove District Council,Surpluses/deficits on trading undertakings,Depot Services,Supplies and Services,Services,D49,Miscellaneous services,31/07/2014,187242,500.00,Revenue income and expenditure,Blythe Valley Ltd,3677,1,VO,201404,DW32,P1,
B,Bromsgrove District Council,Surpluses/deficits on trading undertakings,Depot Services,Supplies and Services,"Equipment, furniture and materials",D06,Materials - purchased,30/07/2014,187243,11.32,Revenue income and expenditure,Wurth UK Ltd,10087,1,VO,201404,DT41,P1,
B,Bromsgrove District Council,Not BVACOP Service,Not BVACOP Sub Division,Current Assets,Stocks,300,Stock Movement,31/07/2014,187245,163.44,,Egbert H Taylor & Co Ltd,1210,2,VO,201404,XX611,P1,
B,Bromsgrove District Council,Cultural and Related Services,Sports Development and community recreation,Supplies and Services,Communication and computing,D51,Printing and stationery,31/07/2014,187252,90.00,Revenue income and expenditure,Vernon Print & Design,2954,1,VO,201404,BB04,P1,
B,Bromsgrove District Council,Surpluses/deficits on trading undertakings,Depot Services,Supplies and Services,Communication and computing,D53,Postage/packaging,31/07/2014,187253,15.00,Revenue income and expenditure,Neopost Ltd,1462,1,VO,201404,CD20,P1,
B,Bromsgrove District Council,Surpluses/deficits on trading undertakings,Depot Services,Supplies and Services,Communication and computing,D53,Postage/packaging,31/07/2014,187253,"3,052.48",Revenue income and expenditure,Neopost Ltd,1462,1,VO,201404,CD20,P4,
B,Bromsgrove District Council,Surpluses/deficits on trading undertakings,Depot Services,Supplies and Services,"Equipment, furniture and materials",D06,Materials - purchased,31/07/2014,187262,"1,154.00",Revenue income and expenditure,Rigby Taylor Ltd,1546,1,VO,201404,DW32,P1,
B,Bromsgrove District Council,Central Services to the Public,Conducting Elections,Supplies and Services,Miscellaneous expenses,D82,Non reclaimable VAT,31/07/2014,187264,1.01,Revenue income and expenditure,Office Depot UK Ltd,6249,1,VO,201404,EL12,0,
B,Bromsgrove District Council,Central Services to the Public,Conducting Elections,Supplies and Services,Miscellaneous expenses,D82,Non reclaimable VAT,31/07/2014,187264,1.01,Revenue income and expenditure,Office Depot UK Ltd,6249,1,VO,201404,EL04,0,
B,Bromsgrove District Council,Central Services to the Public,Conducting Elections,Supplies and Services,Communication and computing,D51,Printing and stationery,31/07/2014,187264,3.90,Revenue income and expenditure,Office Depot UK Ltd,6249,1,VO,201404,EL06,P1,
B,Bromsgrove District Council,Central Services to the Public,Conducting Elections,Supplies and Services,Communication and computing,D51,Printing and stationery,31/07/2014,187264,5.05,Revenue income and expenditure,Office Depot UK Ltd,6249,1,VO,201404,EL02,P1,
B,Bromsgrove District Council,Central Services to the Public,Conducting Elections,Supplies and Services,Communication and computing,D51,Printing and stationery,31/07/2014,187264,5.05,Revenue income and expenditure,Office Depot UK Ltd,6249,1,VO,201404,EL10,P1,
B,Bromsgrove District Council,Central Services to the Public,Conducting Elections,Supplies and Services,Communication and computing,D51,Printing and stationery,31/07/2014,187264,5.05,Revenue income and expenditure,Office Depot UK Ltd,6249,1,VO,201404,EL12,N1,
B,Bromsgrove District Council,Central Services to the Public,Registration of Electors,Supplies and Services,Communication and computing,D51,Printing and stationery,31/07/2014,187264,1.04,Revenue income and expenditure,Office Depot UK Ltd,6249,1,VO,201404,EL00,P1,
B,Bromsgrove District Council,Central Services to the Public,Conducting Elections,Supplies and Services,Communication and computing,D51,Printing and stationery,31/07/2014,187264,5.05,Revenue income and expenditure,Office Depot UK Ltd,6249,1,VO,201404,EL04,N1,
B,Bromsgrove District Council,Planning and Development Services,Advice,Supplies and Services,Services,D47,Consultants' fees,31/07/2014,187266,350.00,Revenue income and expenditure,A D Horner Ltd,1323,1,VO,201404,DC00,P1,
B,Bromsgrove District Council,Surpluses/deficits on trading undertakings,Internal Business Units and Support Services,Supplies and Services,Services,D47,Consultants' fees,31/07/2014,187267,"3,300.00",Revenue income and expenditure,Miss Sarah Clover,5893,3,VO,201404,LS12,P1,
B,Bromsgrove District Council,Planning and Development Services,Advice,Supplies and Services,Communication and computing,D54,Advertising (general),31/07/2014,187272,209.99,Revenue income and expenditure,TMP (UK) Ltd,1646,1,VO,201404,DC00,P1,
B,Bromsgrove District Council,Surpluses/deficits on trading undertakings,Depot Services,Transport Related Expenditure,Direct Transport Costs,C01,Vehicle repairs/maint'ce,31/07/2014,187280,240.00,Revenue income and expenditure,Guest Trucks,7762,1,VO,201404,DW21,P1,
B,Bromsgrove District Council,Planning and Development Services,Advice,Employees,Direct Employee Expenses,A10,Agency workers,31/07/2014,187283,"1,407.50",Revenue income and expenditure,Dudley Metropolitan Borough Council,4645,1,VO,201404,DC00,P4,
B,Bromsgrove District Council,Not BVACOP Service,Not BVACOP Sub Division,Current Assets,Stocks,300,Stock Movement,29/07/2014,187298,-32.38,,Wurth UK Ltd,10087,1,CN,201404,XX611,P1,
B,Bromsgrove District Council,Planning and Development Services,Other Building control work,Supplies and Services,"Equipment, furniture and materials",D01,Equipment - purchase,31/07/2014,187301,"4,145.00",Revenue income and expenditure,IDOX Software Ltd,6852,1,VO,201404,BR03,P1,
B,Bromsgrove District Council,Surpluses/deficits on trading undertakings,Internal Business Units and Support Services,Supplies and Services,Services,D43,Training fees,31/07/2014,187302,"2,115.00",Revenue income and expenditure,Fast Lane Consulting & Education Services Ltd,10233,1,VO,201404,IT00,P1,
B,Bromsgrove District Council,Surpluses/deficits on trading undertakings,Depot Services,Transport Related Expenditure,Direct Transport Costs,C01,Vehicle repairs/maint'ce,31/07/2014,187312,365.00,Revenue income and expenditure,WasteParts UK Ltd,6508,1,VO,201404,DW11,P1,
B,Bromsgrove District Council,Surpluses/deficits on trading undertakings,Depot Services,Supplies and Services,Communication and computing,D53,Postage/packaging,31/07/2014,187312,25.00,Revenue income and expenditure,WasteParts UK Ltd,6508,1,VO,201404,DW11,P1,
B,Bromsgrove District Council,Not BVACOP Service,Not BVACOP Sub Division,Current Assets,Stocks,300,Stock Movement,31/07/2014,187325,45.10,,Arco Ltd,1027,1,VN,201404,XX611,P1,
B,Bromsgrove District Council,General Fund Housing Services,Registered Social Landlords,Supplies and Services,Catering,D23,Catering (incl.food purchases),31/07/2014,187327,136.00,Revenue income and expenditure,Stranz Square Cafe Catering,9170,3,VO,201404,HG22,P4,
B,Bromsgrove District Council,,,Supplies and Services,Miscellaneous expenses,D87,Marketing/promotion/publicity,09/07/2014,2071890,419.00,Revenue income and expenditure,,0,,PC,201404,CM19,P6,Adj to gpc jrl 2071841 shutterstock
B,Bromsgrove District Council,,,Supplies and Services,Miscellaneous expenses,D87,Marketing/promotion/publicity,09/07/2014,2071890,-502.80,Revenue income and expenditure,,0,,PC,201404,CM19,P5,Adj to gpc jrl 2071841 shutterstock
B,Bromsgrove District Council,Surpluses/deficits on trading undertakings,Depot Services,Employees,Indirect Employee Expenses,A23,Training for professional qualifications,09/07/2014,2071891,17.50,Revenue income and expenditure,,0,,PC,201404,DW11,P3,GPC Purchases June 2014 DSA
B,Bromsgrove District Council,Surpluses/deficits on trading undertakings,Depot Services,Supplies and Services,Services,D43,Training fees,09/07/2014,2071891,26.25,Revenue income and expenditure,,0,,PC,201404,DP02,P3,GPC Purchases June 2014 DSA
B,Bromsgrove District Council,Surpluses/deficits on trading undertakings,Depot Services,Employees,Indirect Employee Expenses,A23,Training for professional qualifications,09/07/2014,2071891,8.75,Revenue income and expenditure,,0,,PC,201404,DT41,P3,GPC Purchases June 2014 DSA
B,Bromsgrove District Council,Surpluses/deficits on trading undertakings,Depot Services,Employees,Indirect Employee Expenses,A23,Training for professional qualifications,10/07/2014,2071901,8.75,Revenue income and expenditure,,0,,PC,201404,DW21,P3,GPC Purchases June 2014 DSA
B,Bromsgrove District Council,Surpluses/deficits on trading undertakings,Depot Services,Supplies and Services,Services,D43,Training fees,10/07/2014,2071901,26.25,Revenue income and expenditure,,0,,PC,201404,DP02,P3,GPC Purchases June 2014 DSA
B,Bromsgrove District Council,Surpluses/deficits on trading undertakings,Depot Services,Employees,Indirect Employee Expenses,A23,Training for professional qualifications,10/07/2014,2071901,8.75,Revenue income and expenditure,,0,,PC,201404,DT41,P3,GPC Purchases June 2014 DSA
B,Bromsgrove District Council,Surpluses/deficits on trading undertakings,Internal Business Units and Support Services,Supplies and Services,Services,D49,Miscellaneous services,04/08/2014,2072108,280.00,Revenue income and expenditure,,0,,PC,201404,LS12,P4,GPC Purchases July 2014 Combined Court
B,Bromsgrove District Council,Surpluses/deficits on trading undertakings,Internal Business Units and Support Services,Supplies and Services,"Equipment, furniture and materials",D06,Materials - purchased,04/08/2014,2072108,8.99,Revenue income and expenditure,,0,,PC,201404,ES20,P6,GPC Purchases July 2014 PTS
B,Bromsgrove District Council,Surpluses/deficits on trading undertakings,Internal Business Units and Support Services,Supplies and Services,"Equipment, furniture and materials",D06,Materials - purchased,04/08/2014,2072108,25.39,Revenue income and expenditure,,0,,PC,201404,ES20,P5,GPC Purchases July 2014 Amazon
B,Bromsgrove District Council,Surpluses/deficits on trading undertakings,Internal Business Units and Support Services,Supplies and Services,"Equipment, furniture and materials",D06,Materials - purchased,04/08/2014,2072108,8.82,Revenue income and expenditure,,0,,PC,201404,ES20,P6,GPC Purchases July 2014 Co-op
B,Bromsgrove District Council,Environmental Services,Public Toilets,Supplies and Services,"Equipment, furniture and materials",D06,Materials - purchased,04/08/2014,2072108,67.40,Revenue income and expenditure,,0,,PC,201404,PC03,P6,GPC Purchases July 2014 Omega
B,Bromsgrove District Council,,,Supplies and Services,Communication and computing,D52,Books and publications,04/08/2014,2072108,105.00,Revenue income and expenditure,,0,,PC,201404,RB10,P4,GPC Purchases July 2014 Amazon
B,Bromsgrove District Council,Surpluses/deficits on trading undertakings,Internal Business Units and Support Services,Supplies and Services,"Equipment, furniture and materials",D06,Materials - purchased,04/08/2014,2072108,3.87,Revenue income and expenditure,,0,,PC,201404,ES20,P4,GPC Purchases July 2014 Co-op
B,Bromsgrove District Council,,,Supplies and Services,Catering,D23,Catering (incl.food purchases),04/08/2014,2072108,27.00,Revenue income and expenditure,,0,,PC,201404,CD41,P4,GPC Purchases July 2014 Marks & Spencers
B,Bromsgrove District Council,Surpluses/deficits on trading undertakings,Internal Business Units and Support Services,Employees,Indirect Employee Expenses,A23,Training for professional qualifications,04/08/2014,2072108,345.00,Revenue income and expenditure,,0,,PC,201404,ES20,P6,GPC Purchases July 2014 Elmhurst Energy
B,Bromsgrove District Council,,,Supplies and Services,Services,D49,Miscellaneous services,04/08/2014,2072108,"1,488.00",Revenue income and expenditure,,0,,PC,201404,RB01,P4,GPC Purchases July 2014 HM Courts
B,Bromsgrove District Council,Surpluses/deficits on trading undertakings,Internal Business Units and Support Services,Supplies and Services,"Equipment, furniture and materials",D06,Materials - purchased,04/08/2014,2072108,117.13,Revenue income and expenditure,,0,,PC,201404,ES20,P4,GPC Purchases July 2014 Amazon
B,Bromsgrove District Council,Environmental Services,Public Toilets,Supplies and Services,"Equipment, furniture and materials",D06,Materials - purchased,04/08/2014,2072108,167.70,Revenue income and expenditure,,0,,PC,201404,PC03,P6,GPC Purchases July 2014 PTS
B,Bromsgrove District Council,Surpluses/deficits on trading undertakings,Internal Business Units and Support Services,Supplies and Services,"Equipment, furniture and materials",D06,Materials - purchased,04/08/2014,2072108,25.03,Revenue income and expenditure,,0,,PC,201404,ES20,P6,GPC Purchases July 2014 Plumbase
B,Bromsgrove District Council,Surpluses/deficits on trading undertakings,Depot Services,Supplies and Services,"Clothes, uniform and laundry",D31,Clothing and uniforms,04/08/2014,2072109,106.62,Revenue income and expenditure,,0,,PC,201404,DW21,P6,GPC Purchases July 2014 Chain Reaction Cycles
B,Bromsgrove District Council,Not BVACOP Service,Not BVACOP Sub Division,Current Assets,Stocks,300,Stock Movement,04/08/2014,2072109,41.55,,,0,,PC,201404,XX611,P6,GPC Purchases July 2014 Agratech
B,Bromsgrove District Council,Surpluses/deficits on trading undertakings,Depot Services,Employees,Indirect Employee Expenses,A23,Training for professional qualifications,04/08/2014,2072109,8.75,Revenue income and expenditure,,0,,PC,201404,DW21,P3,GPC Purchases July 2014 DSA
B,Bromsgrove District Council,Surpluses/deficits on trading undertakings,Depot Services,Transport Related Expenditure,Direct Transport Costs,C01,Vehicle repairs/maint'ce,04/08/2014,2072109,20.36,Revenue income and expenditure,,0,,PC,201404,DW21,P6,GPC Purchases July 2014 Bromsgrove Motor Factor
B,Bromsgrove District Council,Surpluses/deficits on trading undertakings,Depot Services,Supplies and Services,"Equipment, furniture and materials",D06,Materials - purchased,04/08/2014,2072109,83.33,Revenue income and expenditure,,0,,PC,201404,DS62,P6,GPC Purchases July 2014 Screwfix
B,Bromsgrove District Council,Surpluses/deficits on trading undertakings,Depot Services,Employees,Indirect Employee Expenses,A23,Training for professional qualifications,04/08/2014,2072109,43.75,Revenue income and expenditure,,0,,PC,201404,DW11,P3,GPC Purchases July 2014 DSA
B,Bromsgrove District Council,Surpluses/deficits on trading undertakings,Depot Services,Employees,Indirect Employee Expenses,A23,Training for professional qualifications,04/08/2014,2072109,8.75,Revenue income and expenditure,,0,,PC,201404,DT41,P3,GPC Purchases July 2014 DSA
B,Bromsgrove District Council,Surpluses/deficits on trading undertakings,Depot Services,Supplies and Services,Services,D43,Training fees,04/08/2014,2072109,192.50,Revenue income and expenditure,,0,,PC,201404,DP02,P3,GPC Purchases July 2014 DSA
B,Bromsgrove District Council,Surpluses/deficits on trading undertakings,Depot Services,Supplies and Services,"Equipment, furniture and materials",D06,Materials - purchased,04/08/2014,2072109,103.48,Revenue income and expenditure,,0,,PC,201404,DW32,P6,GPC Purchases July 2014 Earlswood Nurseries
B,Bromsgrove District Council,Surpluses/deficits on trading undertakings,Depot Services,Transport Related Expenditure,Direct Transport Costs,C01,Vehicle repairs/maint'ce,04/08/2014,2072109,14.52,Revenue income and expenditure,,0,,PC,201404,DW32,P6,GPC Purchases July 2014 Ron Smith & Co
B,Bromsgrove District Council,Surpluses/deficits on trading undertakings,Depot Services,Transport Related Expenditure,Direct Transport Costs,C01,Vehicle repairs/maint'ce,04/08/2014,2072109,13.98,Revenue income and expenditure,,0,,PC,201404,DW32,P6,GPC Purchases July 2014 Bromsgrove Motor Factor
B,Bromsgrove District Council,Surpluses/deficits on trading undertakings,Depot Services,Supplies and Services,"Equipment, furniture and materials",D01,Equipment - purchase,04/08/2014,2072109,49.98,Revenue income and expenditure,,0,,PC,201404,DW21,P6,GPC Purchases July 2014 Screwfix
B,Bromsgrove District Council,Surpluses/deficits on trading undertakings,Internal Business Units and Support Services,Supplies and Services,Communication and computing,D56,Computer - hardware,05/08/2014,2072125,47.49,Revenue income and expenditure,,0,,PC,201404,IT12,0,GPC Purchases June 2014 Amazon
B,Bromsgrove District Council,Surpluses/deficits on trading undertakings,Internal Business Units and Support Services,Supplies and Services,Communication and computing,D57,Computer - software,05/08/2014,2072125,-153.00,Revenue income and expenditure,,0,,PC,201404,IT12,0,GPC April 2014- WP Zen Software
B,Bromsgrove District Council,Surpluses/deficits on trading undertakings,Internal Business Units and Support Services,Supplies and Services,Communication and computing,D52,Books and publications,05/08/2014,2072125,-47.49,Revenue income and expenditure,,0,,PC,201404,IT12,0,GPC Purchases June 2014 Amazon
B,Bromsgrove District Council,Surpluses/deficits on trading undertakings,Internal Business Units and Support Services,Transport Related Expenditure,Public Transport,C44,Public transport,05/08/2014,2072125,182.27,Revenue income and expenditure,,0,,PC,201404,IT00,0,GPC Purchases May 2014- Trainline
B,Bromsgrove District Council,Surpluses/deficits on trading undertakings,Internal Business Units and Support Services,Employees,Indirect Employee Expenses,A24,Recruitment advertising,05/08/2014,2072125,118.80,Revenue income and expenditure,,0,,PC,201404,IT00,0,GPC April 2014 Reed Online
B,Bromsgrove District Council,Surpluses/deficits on trading undertakings,Internal Business Units and Support Services,Supplies and Services,Communication and computing,D57,Computer - software,05/08/2014,2072125,153.00,Revenue income and expenditure,,0,,PC,201404,IT10,0,GPC April 2014- WP Zen Software
B,Bromsgrove District Council,Surpluses/deficits on trading undertakings,Internal Business Units and Support Services,Supplies and Services,Services,D49,Miscellaneous services,05/08/2014,2072125,-118.80,Revenue income and expenditure,,0,,PC,201404,IT12,0,GPC April 2014 Reed Online
B,Bromsgrove District Council,Surpluses/deficits on trading undertakings,Internal Business Units and Support Services,Transport Related Expenditure,Public Transport,C44,Public transport,05/08/2014,2072125,-182.27,Revenue income and expenditure,,0,,PC,201404,IT12,0,GPC Purchases May 2014- Trainline
B,Bromsgrove District Council,Surpluses/deficits on trading undertakings,Depot Services,Transport Related Expenditure,Direct Transport Costs,C07,Licences,06/08/2014,2072139,652.50,Revenue income and expenditure,,0,,PC,201404,DS61,P5,GPC Purchases July 2014 DVLA
B,Bromsgrove District Council,Surpluses/deficits on trading undertakings,Depot Services,Supplies and Services,"Equipment, furniture and materials",D08,Test Purchases,06/08/2014,2072139,205.00,Revenue income and expenditure,,0,,PC,201404,DT42,P5,GPC Purchases July 2014 VOSA
B,Bromsgrove District Council,General Fund Housing Services,Housing Strategy,Premise Related Expenditure,Rents,B30,Rents,02/07/2014,7051008,535.00,Revenue income and expenditure,Simply Lets,6424,1,AP,201404,HG51,P4,
B,Bromsgrove District Council,,,Supplies and Services,Services,D48,Contractors' fees/charges/SLA's,02/07/2014,7051009,"2,500.00",Revenue income and expenditure,Wychavon Leisure Community Association Ltd,7352,1,AP,201404,CC01,P1,
B,Bromsgrove District Council,Cultural and Related Services,Indoor Sports and Recreation Facilities,Supplies and Services,Grants and subscriptions,D71,Grants,02/07/2014,7051009,"83,310.00",Revenue income and expenditure,Wychavon Leisure Community Association Ltd,7352,1,AP,201404,SC01,P5,
B,Bromsgrove District Council,Central Services to the Public,Conducting Elections,Premise Related Expenditure,Rents,B31,Room hire,02/07/2014,7051012,300.00,Revenue income and expenditure,Hopwood Village Hall,1322,1,AP,201404,EL05,P4,
B,Bromsgrove District Council,Surpluses/deficits on trading undertakings,Internal Business Units and Support Services,Premise Related Expenditure,Energy Costs,B22,Electricity,02/07/2014,7051013,395.00,Revenue income and expenditure,NPower Yorkshire Ltd,10748,1,AP,201404,ES20,P1,8872616007
B,Bromsgrove District Council,Surpluses/deficits on trading undertakings,Internal Business Units and Support Services,Supplies and Services,Services,D49,Miscellaneous services,09/07/2014,7051019,75.00,Revenue income and expenditure,Deaf Direct Ltd,9963,1,AP,201404,LS05,P4,3848-27220/a  3862-27229/a
B,Bromsgrove District Council,,,Supplies and Services,Services,D42,Seminar and course fees,16/07/2014,7051032,400.00,Revenue income and expenditure,REDACTED PERSONAL DATA,10775,3,AP,201404,CM20,P3,
B,Bromsgrove District Council,Not BVACOP Service,Not BVACOP Sub Division,Supplies and Services,Communication and computing,D57,Computer - software,16/07/2014,7051034,"-2,110.99",Revenue income and expenditure,Experian Ltd,1903,1,AP,201404,RB99,P1,INV HEX38000486017
B,Bromsgrove District Council,Cultural and Related Services,Outdoor sports and recreation facilities,Premise Related Expenditure,Energy Costs,B22,Electricity,16/07/2014,7051036,70.95,Revenue income and expenditure,Npower Limited,2080,1,AP,201404,RG61,P2,
B,Bromsgrove District Council,Cultural and Related Services,Community parks and open spaces,Premise Related Expenditure,Energy Costs,B22,Electricity,16/07/2014,7051036,12.42,Revenue income and expenditure,Npower Limited,2080,1,AP,201404,RG01,P1,
B,Bromsgrove District Council,Cultural and Related Services,Community parks and open spaces,Premise Related Expenditure,Energy Costs,B22,Electricity,16/07/2014,7051036,397.52,Revenue income and expenditure,Npower Limited,2080,1,AP,201404,SP00,P1,
B,Bromsgrove District Council,Environmental Services,Cemeteries,Premise Related Expenditure,Energy Costs,B22,Electricity,16/07/2014,7051036,27.30,Revenue income and expenditure,Npower Limited,2080,1,AP,201404,CE03,P2,
B,Bromsgrove District Council,Cultural and Related Services,Museums and Gallaries,Premise Related Expenditure,Energy Costs,B22,Electricity,16/07/2014,7051036,16.62,Revenue income and expenditure,Npower Limited,2080,1,AP,201404,MT91,P2,
B,Bromsgrove District Council,Central Services to the Public,Community Centres,Premise Related Expenditure,Energy Costs,B22,Electricity,16/07/2014,7051036,43.48,Revenue income and expenditure,Npower Limited,2080,1,AP,201404,AH01,P2,
B,Bromsgrove District Council,Surpluses/deficits on trading undertakings,Internal Business Units and Support Services,Premise Related Expenditure,Energy Costs,B22,Electricity,16/07/2014,7051036,12.15,Revenue income and expenditure,Npower Limited,2080,1,AP,201404,ES20,P2,
B,Bromsgrove District Council,Cultural and Related Services,Community parks and open spaces,Premise Related Expenditure,Energy Costs,B22,Electricity,16/07/2014,7051036,292.03,Revenue income and expenditure,Npower Limited,2080,1,AP,201404,RG01,P2,
B,Bromsgrove District Council,Cultural and Related Services,Outdoor sports and recreation facilities,Premise Related Expenditure,Energy Costs,B22,Electricity,16/07/2014,7051036,1.63,Revenue income and expenditure,Npower Limited,2080,1,AP,201404,RG64,P2,
B,Bromsgrove District Council,Surpluses/deficits on trading undertakings,Internal Business Units and Support Services,Premise Related Expenditure,Energy Costs,B22,Electricity,16/07/2014,7051036,"2,825.54",Revenue income and expenditure,Npower Limited,2080,1,AP,201404,ES20,P1,
B,Bromsgrove District Council,Surpluses/deficits on trading undertakings,Depot Services,Premise Related Expenditure,Energy Costs,B22,Electricity,16/07/2014,7051036,444.88,Revenue income and expenditure,Npower Limited,2080,1,AP,201404,DP02,P1,
B,Bromsgrove District Council,Environmental Services,Public Toilets,Premise Related Expenditure,Energy Costs,B22,Electricity,16/07/2014,7051036,12.29,Revenue income and expenditure,Npower Limited,2080,1,AP,201404,PC04,P2,
B,Bromsgrove District Council,Environmental Services,Cemeteries,Premise Related Expenditure,Energy Costs,B22,Electricity,16/07/2014,7051036,20.18,Revenue income and expenditure,Npower Limited,2080,1,AP,201404,CE01,P2,
B,Bromsgrove District Council,Environmental Services,Public Toilets,Premise Related Expenditure,Energy Costs,B22,Electricity,16/07/2014,7051036,22.72,Revenue income and expenditure,Npower Limited,2080,1,AP,201404,PC01,P2,
B,Bromsgrove District Council,Cultural and Related Services,Outdoor sports and recreation facilities,Premise Related Expenditure,Energy Costs,B22,Electricity,16/07/2014,7051036,29.85,Revenue income and expenditure,Npower Limited,2080,1,AP,201404,RG62,P2,
B,Bromsgrove District Council,Environmental Services,Public Toilets,Premise Related Expenditure,Energy Costs,B22,Electricity,16/07/2014,7051036,248.89,Revenue income and expenditure,Npower Limited,2080,1,AP,201404,PC03,P1,
B,Bromsgrove District Council,Highways and transport services,Off-street Parking,Premise Related Expenditure,Energy Costs,B22,Electricity,16/07/2014,7051036,"1,034.51",Revenue income and expenditure,Npower Limited,2080,1,AP,201404,CP01,P1,
B,Bromsgrove District Council,Environmental Services,Community Safety (Crime Reduction),Premise Related Expenditure,Energy Costs,B22,Electricity,16/07/2014,7051037,164.47,Revenue income and expenditure,Npower Limited,2080,1,AP,201404,CS22,P1,LJ660003
B,Bromsgrove District Council,Highways and transport services,Off-street Parking,Premise Related Expenditure,Energy Costs,B22,Electricity,16/07/2014,7051037,"1,265.46",Revenue income and expenditure,Npower Limited,2080,1,AP,201404,CP00,P1,LJ660003
B,Bromsgrove District Council,Surpluses/deficits on trading undertakings,Depot Services,Premise Related Expenditure,Energy Costs,B22,Electricity,16/07/2014,7051038,131.88,Revenue income and expenditure,Npower Limited,2080,1,AP,201404,DS61,P1,LJ660036
B,Bromsgrove District Council,Surpluses/deficits on trading undertakings,Internal Business Units and Support Services,Premise Related Expenditure,Energy Costs,B22,Electricity,16/07/2014,7051039,"1,662.13",Revenue income and expenditure,Npower Limited,2080,1,AP,201404,ES20,P1,LJ660035
B,Bromsgrove District Council,General Fund Housing Services,Housing Strategy,Premise Related Expenditure,Rents,B30,Rents,18/07/2014,7051040,50.00,Revenue income and expenditure,REDACTED PERSONAL DATA,10266,3,AP,201404,HG51,P4,
B,Bromsgrove District Council,General Fund Housing Services,Housing Strategy,Premise Related Expenditure,Rents,B30,Rents,18/07/2014,7051041,425.00,Revenue income and expenditure,REDACTED PERSONAL DATA,10266,3,AP,201404,HG51,P4,
B,Bromsgrove District Council,Cultural and Related Services,Indoor Sports and Recreation Facilities,Supplies and Services,Miscellaneous expenses,D88,Miscellaneous expenses,18/07/2014,7051042,"4,258.95",Revenue income and expenditure,Wychavon Leisure Community Association Ltd,7352,1,AP,201404,SC01,P5,
B,Bromsgrove District Council,Surpluses/deficits on trading undertakings,Internal Business Units and Support Services,Supplies and Services,Communication and computing,D56,Computer - hardware,18/07/2014,7051048,560.00,Revenue income and expenditure,Haven Systems Ltd.,8837,1,AP,201404,IT12,P1,Trans 186721
B,Bromsgrove District Council,Surpluses/deficits on trading undertakings,Internal Business Units and Support Services,Supplies and Services,Communication and computing,D56,Computer - hardware,18/07/2014,7051048,560.00,Revenue income and expenditure,Haven Systems Ltd.,8837,1,AP,201404,IT10,P1,Trans 186721
B,Bromsgrove District Council,Surpluses/deficits on trading undertakings,Internal Business Units and Support Services,Premise Related Expenditure,Energy Costs,B22,Electricity,22/07/2014,7051063,"1,485.01",Revenue income and expenditure,Npower Limited,2080,1,AP,201404,ES20,P1,LJ660035
B,Bromsgrove District Council,Environmental Services,Community Safety (Crime Reduction),Premise Related Expenditure,Energy Costs,B22,Electricity,22/07/2014,7051064,159.17,Revenue income and expenditure,Npower Limited,2080,1,AP,201404,CS22,P1,LJ660003/4/5
B,Bromsgrove District Council,Highways and transport services,Off-street Parking,Premise Related Expenditure,Energy Costs,B22,Electricity,22/07/2014,7051064,"1,224.64",Revenue income and expenditure,Npower Limited,2080,1,AP,201404,CP00,P1,LJ660003/4/5
B,Bromsgrove District Council,Surpluses/deficits on trading undertakings,Depot Services,Premise Related Expenditure,Energy Costs,B22,Electricity,22/07/2014,7051065,136.24,Revenue income and expenditure,Npower Limited,2080,1,AP,201404,DS61,P1,LJ660036
B,Bromsgrove District Council,Surpluses/deficits on trading undertakings,Depot Services,Premise Related Expenditure,Energy Costs,B23,Gas,22/07/2014,7051066,"1,480.82",Revenue income and expenditure,Total Gas & Power,10244,1,AP,201404,DP02,P1,3003128458
B,Bromsgrove District Council,Surpluses/deficits on trading undertakings,Internal Business Units and Support Services,Premise Related Expenditure,Energy Costs,B23,Gas,22/07/2014,7051068,"1,810.94",Revenue income and expenditure,Total Gas & Power,10244,1,AP,201404,ES20,P1,3003133408
B,Bromsgrove District Council,Surpluses/deficits on trading undertakings,Depot Services,Premise Related Expenditure,Energy Costs,B23,Gas,23/07/2014,7051071,862.66,Revenue income and expenditure,Total Gas & Power,10244,1,AP,201404,DP02,P1,3003128458
B,Bromsgrove District Council,Surpluses/deficits on trading undertakings,Internal Business Units and Support Services,Premise Related Expenditure,Energy Costs,B23,Gas,23/07/2014,7051073,"1,085.44",Revenue income and expenditure,Total Gas & Power,10244,1,AP,201404,ES20,P1,3003133408
B,Bromsgrove District Council,Surpluses/deficits on trading undertakings,Depot Services,Premise Related Expenditure,Energy Costs,B23,Gas,23/07/2014,7051079,539.24,Revenue income and expenditure,Total Gas & Power,10244,1,AP,201404,DP02,P1,3003128458
B,Bromsgrove District Council,Surpluses/deficits on trading undertakings,Internal Business Units and Support Services,Premise Related Expenditure,Energy Costs,B23,Gas,23/07/2014,7051080,698.57,Revenue income and expenditure,Total Gas & Power,10244,1,AP,201404,ES20,P1,3003133408
B,Bromsgrove District Council,Surpluses/deficits on trading undertakings,Depot Services,Premise Related Expenditure,Energy Costs,B22,Electricity,23/07/2014,7051081,404.65,Revenue income and expenditure,Npower Limited,2080,1,AP,201404,DP02,P1,
B,Bromsgrove District Council,Cultural and Related Services,Outdoor sports and recreation facilities,Premise Related Expenditure,Energy Costs,B22,Electricity,23/07/2014,7051081,29.18,Revenue income and expenditure,Npower Limited,2080,1,AP,201404,RG61,P2,
B,Bromsgrove District Council,Cultural and Related Services,Community parks and open spaces,Premise Related Expenditure,Energy Costs,B22,Electricity,23/07/2014,7051081,403.25,Revenue income and expenditure,Npower Limited,2080,1,AP,201404,SP00,P1,
B,Bromsgrove District Council,Environmental Services,Public Toilets,Premise Related Expenditure,Energy Costs,B22,Electricity,23/07/2014,7051081,218.63,Revenue income and expenditure,Npower Limited,2080,1,AP,201404,PC03,P1,
B,Bromsgrove District Council,Cultural and Related Services,Outdoor sports and recreation facilities,Premise Related Expenditure,Energy Costs,B22,Electricity,23/07/2014,7051081,30.51,Revenue income and expenditure,Npower Limited,2080,1,AP,201404,RG62,P2,
B,Bromsgrove District Council,Environmental Services,Public Toilets,Premise Related Expenditure,Energy Costs,B22,Electricity,23/07/2014,7051081,12.81,Revenue income and expenditure,Npower Limited,2080,1,AP,201404,PC04,P2,
B,Bromsgrove District Council,Cultural and Related Services,Outdoor sports and recreation facilities,Premise Related Expenditure,Energy Costs,B22,Electricity,23/07/2014,7051081,4.77,Revenue income and expenditure,Npower Limited,2080,1,AP,201404,RG64,P1,
B,Bromsgrove District Council,Central Services to the Public,Community Centres,Premise Related Expenditure,Energy Costs,B22,Electricity,23/07/2014,7051081,43.12,Revenue income and expenditure,Npower Limited,2080,1,AP,201404,AH01,P2,
B,Bromsgrove District Council,Environmental Services,Cemeteries,Premise Related Expenditure,Energy Costs,B22,Electricity,23/07/2014,7051081,11.69,Revenue income and expenditure,Npower Limited,2080,1,AP,201404,CE01,P2,
B,Bromsgrove District Council,Surpluses/deficits on trading undertakings,Internal Business Units and Support Services,Premise Related Expenditure,Energy Costs,B22,Electricity,23/07/2014,7051081,12.61,Revenue income and expenditure,Npower Limited,2080,1,AP,201404,ES20,P2,
B,Bromsgrove District Council,Environmental Services,Public Toilets,Premise Related Expenditure,Energy Costs,B22,Electricity,23/07/2014,7051081,17.90,Revenue income and expenditure,Npower Limited,2080,1,AP,201404,PC01,P2,
B,Bromsgrove District Council,Cultural and Related Services,Community parks and open spaces,Premise Related Expenditure,Energy Costs,B22,Electricity,23/07/2014,7051081,12.27,Revenue income and expenditure,Npower Limited,2080,1,AP,201404,RG01,P1,
B,Bromsgrove District Council,Cultural and Related Services,Museums and Gallaries,Premise Related Expenditure,Energy Costs,B22,Electricity,23/07/2014,7051081,16.36,Revenue income and expenditure,Npower Limited,2080,1,AP,201404,MT91,P2,
B,Bromsgrove District Council,Highways and transport services,Off-street Parking,Premise Related Expenditure,Energy Costs,B22,Electricity,23/07/2014,7051081,933.04,Revenue income and expenditure,Npower Limited,2080,1,AP,201404,CP01,P1,
B,Bromsgrove District Council,Environmental Services,Cemeteries,Premise Related Expenditure,Energy Costs,B22,Electricity,23/07/2014,7051081,26.44,Revenue income and expenditure,Npower Limited,2080,1,AP,201404,CE03,P2,
B,Bromsgrove District Council,Surpluses/deficits on trading undertakings,Internal Business Units and Support Services,Premise Related Expenditure,Energy Costs,B22,Electricity,23/07/2014,7051081,"2,612.79",Revenue income and expenditure,Npower Limited,2080,1,AP,201404,ES20,P1,
B,Bromsgrove District Council,Highways and transport services,Street Lighting,Premise Related Expenditure,Energy Costs,B22,Electricity,23/07/2014,7051082,"3,003.89",Revenue income and expenditure,Npower Limited,2080,1,AP,201404,HW08,P1,
B,Bromsgrove District Council,Highways and transport services,Street Lighting,Premise Related Expenditure,Energy Costs,B22,Electricity,23/07/2014,7051083,-529.47,Revenue income and expenditure,Npower Limited,2080,1,AP,201404,HW08,P1,
B,Bromsgrove District Council,Surpluses/deficits on trading undertakings,Internal Business Units and Support Services,Supplies and Services,Communication and computing,D51,Printing and stationery,30/07/2014,7051084,427.50,Revenue income and expenditure,Kaiser+Kraft Ltd,2604,1,AP,201404,ES20,P1,Trans 187050
B,Bromsgrove District Council,Surpluses/deficits on trading undertakings,Internal Business Units and Support Services,Employees,Indirect Employee Expenses,A23,Training for professional qualifications,30/07/2014,7051086,"2,115.00",Revenue income and expenditure,Fast Lane Consulting & Education Services Ltd,10233,1,AP,201404,IT12,P1,
B,Bromsgrove District Council,,,Supplies and Services,Services,D49,Miscellaneous services,02/07/2014,2071812,77.20,Revenue income and expenditure,Daisy,0,,JB,201404,RB01,P3,Bank debit 01/07/14
B,Bromsgrove District Council,Surpluses/deficits on trading undertakings,Internal Business Units and Support Services,Supplies and Services,Services,D49,Miscellaneous services,02/07/2014,2071812,9.00,Revenue income and expenditure,Land Registry,0,,JB,201404,LS00,P3,Bank debit 01/07/14  6555066
B,Bromsgrove District Council,Planning and Development Services,Supplementary planning guidance,Supplies and Services,Services,D49,Miscellaneous services,02/07/2014,2071812,4.00,Revenue income and expenditure,Land Registry,0,,JB,201404,LP01,P3,Bank debit 01/07/14  6555066
B,Bromsgrove District Council,,,Supplies and Services,Services,D49,Miscellaneous services,02/07/2014,2071812,3.00,Revenue income and expenditure,Land Registry,0,,JB,201404,RB01,P3,Bank debit 01/07/14  6555260
B,Bromsgrove District Council,Surpluses/deficits on trading undertakings,Internal Business Units and Support Services,Supplies and Services,Services,D49,Miscellaneous services,02/07/2014,2071812,469.96,Revenue income and expenditure,Daisy,0,,JB,201404,FS07,P3,Bank debit 01/07/14
B,Bromsgrove District Council,Surpluses/deficits on trading undertakings,Internal Business Units and Support Services,Supplies and Services,Communication and computing,D57,Computer - software,07/07/2014,2071860,"2,110.99",Revenue income and expenditure,Experian Ltd,0,,JB,201404,IT12,P6,Bank Debit 04/07/14
B,Bromsgrove District Council,Surpluses/deficits on trading undertakings,Internal Business Units and Support Services,Supplies and Services,Services,D49,Miscellaneous services,09/07/2014,2071889,67.00,Revenue income and expenditure,Land Registry,0,,JB,201404,LS00,P3,Bank Debit 08/07/14 6555066
B,Bromsgrove District Council,,,Supplies and Services,Services,D49,Miscellaneous services,09/07/2014,2071889,9.00,Revenue income and expenditure,Land Registry,0,,JB,201404,RB01,P3,Bank Debit 08/07/14 6555260
B,Bromsgrove District Council,,,Supplies and Services,Services,D49,Miscellaneous services,09/07/2014,2071889,3.00,Revenue income and expenditure,Land Registry,0,,JB,201404,RB01,P3,Bank Debit 08/07/14 6554969
B,Bromsgrove District Council,Surpluses/deficits on trading undertakings,Internal Business Units and Support Services,Supplies and Services,Services,D49,Miscellaneous services,15/07/2014,2071935,146.81,Revenue income and expenditure,HSBC,0,,JB,201404,FS07,P3,Bank Debit 14/07/14
B,Bromsgrove District Council,,,Supplies and Services,Services,D49,Miscellaneous services,15/07/2014,2071935,825.78,Revenue income and expenditure,HSBC,0,,JB,201404,RB01,P3,Bank Debit 14/07/14
B,Bromsgrove District Council,,,Supplies and Services,Services,D49,Miscellaneous services,16/07/2014,2071945,12.00,Revenue income and expenditure,Land Registry,0,,JB,201404,RB01,P3,Bank Debit 15/07/14 6554969
B,Bromsgrove District Council,,,Supplies and Services,Services,D49,Miscellaneous services,16/07/2014,2071945,6.00,Revenue income and expenditure,Land Registry,0,,JB,201404,RB01,P3,Bank Debit 15/07/14 6555260
B,Bromsgrove District Council,Surpluses/deficits on trading undertakings,Internal Business Units and Support Services,Supplies and Services,Services,D49,Miscellaneous services,16/07/2014,2071945,6.00,Revenue income and expenditure,Land Registry,0,,JB,201404,LS00,P3,Bank Debit 15/07/14 6555066
B,Bromsgrove District Council,Planning and Development Services,Advice,Supplies and Services,Services,D49,Miscellaneous services,16/07/2014,2071945,3.00,Revenue income and expenditure,Land Registry,0,,JB,201404,DC00,P3,Bank Debit 15/07/14 6555066
B,Bromsgrove District Council,Surpluses/deficits on trading undertakings,Internal Business Units and Support Services,Supplies and Services,Services,D49,Miscellaneous services,17/07/2014,2071954,"2,619.19",Revenue income and expenditure,Global Payments,0,,JB,201404,FS07,P3,Bank Journal 16-07-14
B,Bromsgrove District Council,Surpluses/deficits on trading undertakings,Internal Business Units and Support Services,Supplies and Services,Services,D49,Miscellaneous services,17/07/2014,2071954,3.50,Revenue income and expenditure,Global Payments,0,,JB,201404,FS07,P6,Bank Journal 16-07-14
B,Bromsgrove District Council,Non-Distributable Costs,Non-Distributable Overheads,Employees,Indirect Employee Expenses,A20,Unapportionable employee overheads,21/07/2014,2071976,"102,141.67",Revenue income and expenditure,Worcestershire County Council,0,,JB,201404,ND00,0,Bank Debit 18/07/14
B,Bromsgrove District Council,Surpluses/deficits on trading undertakings,Internal Business Units and Support Services,Supplies and Services,Services,D49,Miscellaneous services,22/07/2014,2071991,23.94,Revenue income and expenditure,World Pay,0,,JB,201404,FS07,P3,Bank Debit 21/07/14
B,Bromsgrove District Council,,,Supplies and Services,Services,D49,Miscellaneous services,23/07/2014,2072010,3.00,Revenue income and expenditure,Land Registry,0,,JB,201404,RB01,P3,Bank Debit 22/07/14 6555260
B,Bromsgrove District Council,,,Supplies and Services,Services,D49,Miscellaneous services,23/07/2014,2072010,6.00,Revenue income and expenditure,Land Registry,0,,JB,201404,RB01,P3,Bank Debit 22/07/14 6554969
B,Bromsgrove District Council,Surpluses/deficits on trading undertakings,Internal Business Units and Support Services,Supplies and Services,Services,D49,Miscellaneous services,30/07/2014,2072072,6.00,Revenue income and expenditure,Land Registry,0,,JB,201404,LS00,P3,Bank Debit 29/07/14 6555066
,,,,,,,,,,"1,110,061.66",,,,,,,,,
